BODY,BODY NAME,DATE,TRANSACTION NUMBER,THEIR REF,CATEGORY,AMOUNT,SUPPLIER NAME,SUPPLIER CODE,EXPENSE AREA,EXPENSE TYPE,EXPENSE CODE
http://statistics.data.gov.uk/id/local-authority/12UE,Huntingdonshire District Council,25/06/2015,171236,60143793,5,480,Local World Ltd,CR000072,Leisure Centres Overall,Advertising/Promoting Services,255
http://statistics.data.gov.uk/id/local-authority/12UE,Huntingdonshire District Council,04/06/2015,169553,55126224,5,259.2,Archant Community Media Ltd,CR452143,Planning M U'S,Advertising/Promoting Services,255
http://statistics.data.gov.uk/id/local-authority/12UE,Huntingdonshire District Council,11/06/2015,169760,SS134424,5,259.2,Archant Community Media Ltd,CR452143,Planning M U'S,Advertising/Promoting Services,255
http://statistics.data.gov.uk/id/local-authority/12UE,Huntingdonshire District Council,04/06/2015,169809,55126224,5,259.2,Archant Herts & Cambs,CR415764,Planning M U'S,Advertising/Promoting Services,255
http://statistics.data.gov.uk/id/local-authority/12UE,Huntingdonshire District Council,11/06/2015,169814,55134424,5,259.2,Archant Herts & Cambs,CR415764,Planning M U'S,Advertising/Promoting Services,255
http://statistics.data.gov.uk/id/local-authority/12UE,Huntingdonshire District Council,04/06/2015,168911,240682,5,542.6,Jacobs,CR422350,Council Tax,Bailiffs,703
http://statistics.data.gov.uk/id/local-authority/12UE,Huntingdonshire District Council,04/06/2015,169442,241072,5,597.89,Jacobs,CR422350,Council Tax,Bailiffs,703
http://statistics.data.gov.uk/id/local-authority/12UE,Huntingdonshire District Council,11/06/2015,169795,241379,5,421.62,Jacobs,CR422350,Council Tax,Bailiffs,703
http://statistics.data.gov.uk/id/local-authority/12UE,Huntingdonshire District Council,25/06/2015,169888,241720,5,399.15,Jacobs,CR422350,Council Tax,Bailiffs,703
http://statistics.data.gov.uk/id/local-authority/12UE,Huntingdonshire District Council,25/06/2015,170627,242098,5,979.88,Jacobs,CR422350,Council Tax,Bailiffs,703
http://statistics.data.gov.uk/id/local-authority/12UE,Huntingdonshire District Council,04/06/2015,169886,99199,5,658.57,Newlyn Plc,CR409114,Council Tax,Bailiffs,703
http://statistics.data.gov.uk/id/local-authority/12UE,Huntingdonshire District Council,11/06/2015,170648,99402,5,777.01,Newlyn Plc,CR409114,Council Tax,Bailiffs,703
http://statistics.data.gov.uk/id/local-authority/12UE,Huntingdonshire District Council,18/06/2015,170646,99659,5,884.93,Newlyn Plc,CR409114,Council Tax,Bailiffs,703
http://statistics.data.gov.uk/id/local-authority/12UE,Huntingdonshire District Council,25/06/2015,170935,99810,5,935.49,Newlyn Plc,CR409114,Council Tax,Bailiffs,703
http://statistics.data.gov.uk/id/local-authority/12UE,Huntingdonshire District Council,11/06/2015,170292,336909,5,27.72,South Lincs Food Service,CR033415,One Leisure Huntingdon,Bar Provisions,558
http://statistics.data.gov.uk/id/local-authority/12UE,Huntingdonshire District Council,11/06/2015,168234,2101975261,5,1110.25,Booker Cash And Carry,CR027611,One Leisure St Ives,Bar Provisions,558
http://statistics.data.gov.uk/id/local-authority/12UE,Huntingdonshire District Council,04/06/2015,169763,2102003121,5,404.11,Booker Cash And Carry,CR027611,One Leisure St Ives,Bar Provisions,558
http://statistics.data.gov.uk/id/local-authority/12UE,Huntingdonshire District Council,04/06/2015,169869,2102012426,5,116.96,Booker Cash And Carry,CR027611,One Leisure St Ives,Bar Provisions,558
http://statistics.data.gov.uk/id/local-authority/12UE,Huntingdonshire District Council,11/06/2015,170146,2102021122,5,288.25,Booker Cash And Carry,CR027611,One Leisure St Ives,Bar Provisions,558
http://statistics.data.gov.uk/id/local-authority/12UE,Huntingdonshire District Council,11/06/2015,170143,2102021506,5,856.85,Booker Cash And Carry,CR027611,One Leisure St Ives,Bar Provisions,558
http://statistics.data.gov.uk/id/local-authority/12UE,Huntingdonshire District Council,25/06/2015,170297,2102032087,5,197.08,Booker Cash And Carry,CR027611,One Leisure St Ives,Bar Provisions,558
http://statistics.data.gov.uk/id/local-authority/12UE,Huntingdonshire District Council,04/06/2015,168975,556236,5,1899.22,Lacons,CR422174,One Leisure St Ives,Bar Provisions,558
http://statistics.data.gov.uk/id/local-authority/12UE,Huntingdonshire District Council,04/06/2015,168974,556238,5,366.43,Lacons,CR422174,One Leisure St Ives,Bar Provisions,558
http://statistics.data.gov.uk/id/local-authority/12UE,Huntingdonshire District Council,04/06/2015,169012,556477,5,515.23,Lacons,CR422174,One Leisure St Ives,Bar Provisions,558
http://statistics.data.gov.uk/id/local-authority/12UE,Huntingdonshire District Council,11/06/2015,169443,557501,5,281.83,Lacons,CR422174,One Leisure St Ives,Bar Provisions,558
http://statistics.data.gov.uk/id/local-authority/12UE,Huntingdonshire District Council,18/06/2015,169863,558556,5,337.5,Lacons,CR422174,One Leisure St Ives,Bar Provisions,558
http://statistics.data.gov.uk/id/local-authority/12UE,Huntingdonshire District Council,25/06/2015,170156,559197,5,2162.04,Lacons,CR422174,One Leisure St Ives,Bar Provisions,558
http://statistics.data.gov.uk/id/local-authority/12UE,Huntingdonshire District Council,25/06/2015,170159,559438,5,458.64,Lacons,CR422174,One Leisure St Ives,Bar Provisions,558
http://statistics.data.gov.uk/id/local-authority/12UE,Huntingdonshire District Council,04/06/2015,169492,I117060A,5,-432.16,Oakham Ales,CR422253,One Leisure St Ives,Bar Provisions,558
http://statistics.data.gov.uk/id/local-authority/12UE,Huntingdonshire District Council,04/06/2015,169490,I119551A,5,-443.95,Oakham Ales,CR422253,One Leisure St Ives,Bar Provisions,558
http://statistics.data.gov.uk/id/local-authority/12UE,Huntingdonshire District Council,04/06/2015,168976,I120460,5,914.64,Oakham Ales,CR422253,One Leisure St Ives,Bar Provisions,558
http://statistics.data.gov.uk/id/local-authority/12UE,Huntingdonshire District Council,18/06/2015,169762,I121237,5,384.84,Oakham Ales,CR422253,One Leisure St Ives,Bar Provisions,558
http://statistics.data.gov.uk/id/local-authority/12UE,Huntingdonshire District Council,25/06/2015,170607,I122237,5,459.07,Oakham Ales,CR422253,One Leisure St Ives,Bar Provisions,558
http://statistics.data.gov.uk/id/local-authority/12UE,Huntingdonshire District Council,11/06/2015,170067,338133,5,41.58,South Lincs Food Service,CR033415,One Leisure St Ives,Bar Provisions,558
http://statistics.data.gov.uk/id/local-authority/12UE,Huntingdonshire District Council,11/06/2015,169418,338135,5,93.56,South Lincs Food Service,CR033415,One Leisure St Ives,Bar Provisions,558
http://statistics.data.gov.uk/id/local-authority/12UE,Huntingdonshire District Council,11/06/2015,170098,252201,5,109.12,Westminster Foodservice,CR455156,One Leisure St Ives,Bar Provisions,558
http://statistics.data.gov.uk/id/local-authority/12UE,Huntingdonshire District Council,18/06/2015,170100,252620,5,109.11,Westminster Foodservice,CR455156,One Leisure St Ives,Bar Provisions,558
http://statistics.data.gov.uk/id/local-authority/12UE,Huntingdonshire District Council,11/06/2015,169584,338315,5,53.66,South Lincs Food Service,CR033415,One Leisure St Neots,Bar Provisions,558
http://statistics.data.gov.uk/id/local-authority/12UE,Huntingdonshire District Council,04/06/2015,170110,599,5,2322,Elephant & Castle Freehouse & Motel,CR401969,Accommodation For Homeless,Bed & Breakfast Payment,818
http://statistics.data.gov.uk/id/local-authority/12UE,Huntingdonshire District Council,11/06/2015,170618,600,5,1890,Elephant & Castle Freehouse & Motel,CR401969,Accommodation For Homeless,Bed & Breakfast Payment,818
http://statistics.data.gov.uk/id/local-authority/12UE,Huntingdonshire District Council,18/06/2015,170971,601,5,1944,Elephant & Castle Freehouse & Motel,CR401969,Accommodation For Homeless,Bed & Breakfast Payment,818
http://statistics.data.gov.uk/id/local-authority/12UE,Huntingdonshire District Council,25/06/2015,171359,602,5,1674,Elephant & Castle Freehouse & Motel,CR401969,Accommodation For Homeless,Bed & Breakfast Payment,818
http://statistics.data.gov.uk/id/local-authority/12UE,Huntingdonshire District Council,25/06/2015,170879,6800207720,5,13813.2,Thomson Reuters,CR412314,Central Services M Us,Books & Publications,250
http://statistics.data.gov.uk/id/local-authority/12UE,Huntingdonshire District Council,04/06/2015,168712,54412,5,1112.96,Beebys Limited,CR415822,Bus Stations,Building Cleaning Internal,440
http://statistics.data.gov.uk/id/local-authority/12UE,Huntingdonshire District Council,25/06/2015,582932,706,1,271.38,St Ives Town Council,CR000701,Bus Stations,Building Cleaning Internal,440
http://statistics.data.gov.uk/id/local-authority/12UE,Huntingdonshire District Council,25/06/2015,170284,540450,5,378.2,Ecocleen Services Limited,CR406985,Off Street Parking,Building Cleaning Internal,440
http://statistics.data.gov.uk/id/local-authority/12UE,Huntingdonshire District Council,25/06/2015,171419,SIN002526,5,373.19,Enterprise Support Services Uk Ltd,CR422509,One Leisure Huntingdon,Building Cleaning Internal,440
http://statistics.data.gov.uk/id/local-authority/12UE,Huntingdonshire District Council,25/06/2015,171419,SIN002526,5,187.19,Enterprise Support Services Uk Ltd,CR422509,One Leisure Ramsey,Building Cleaning Internal,440
http://statistics.data.gov.uk/id/local-authority/12UE,Huntingdonshire District Council,25/06/2015,171419,SIN002526,5,187.19,Enterprise Support Services Uk Ltd,CR422509,One Leisure Sawtry,Building Cleaning Internal,440
http://statistics.data.gov.uk/id/local-authority/12UE,Huntingdonshire District Council,25/06/2015,171419,SIN002526,5,1354.76,Enterprise Support Services Uk Ltd,CR422509,One Leisure St Ives,Building Cleaning Internal,440
http://statistics.data.gov.uk/id/local-authority/12UE,Huntingdonshire District Council,25/06/2015,171419,SIN002526,5,980.38,Enterprise Support Services Uk Ltd,CR422509,One Leisure St Neots,Building Cleaning Internal,440
http://statistics.data.gov.uk/id/local-authority/12UE,Huntingdonshire District Council,25/06/2015,170288,540445,5,671.27,Ecocleen Services Limited,CR406985,Public Conveniences,Building Cleaning Internal,440
http://statistics.data.gov.uk/id/local-authority/12UE,Huntingdonshire District Council,25/06/2015,170286,540447,5,1047.54,Ecocleen Services Limited,CR406985,Public Conveniences,Building Cleaning Internal,440
http://statistics.data.gov.uk/id/local-authority/12UE,Huntingdonshire District Council,04/06/2015,170169,102248,5,3446.22,Cale Briparc Ltd,CR401137,Off Street Parking,Car Park Machines,522
http://statistics.data.gov.uk/id/local-authority/12UE,Huntingdonshire District Council,11/06/2015,170170,103696,5,3719.74,Cale Briparc Ltd,CR401137,Off Street Parking,Car Park Machines,522
http://statistics.data.gov.uk/id/local-authority/12UE,Huntingdonshire District Council,25/06/2015,170628,12658,5,16.74,Jade Security Services Ltd,CR422256,Countryside,Cash Collection,702
http://statistics.data.gov.uk/id/local-authority/12UE,Huntingdonshire District Council,25/06/2015,170628,12658,5,318.06,Jade Security Services Ltd,CR422256,Customer Service Centres,Cash Collection,702
http://statistics.data.gov.uk/id/local-authority/12UE,Huntingdonshire District Council,25/06/2015,170961,12657,5,5615.64,Jade Security Services Ltd,CR422256,Off Street Parking,Cash Collection,702
http://statistics.data.gov.uk/id/local-authority/12UE,Huntingdonshire District Council,25/06/2015,170628,12658,5,267.84,Jade Security Services Ltd,CR422256,One Leisure Huntingdon,Cash Collection,702
http://statistics.data.gov.uk/id/local-authority/12UE,Huntingdonshire District Council,25/06/2015,170628,12658,5,66.96,Jade Security Services Ltd,CR422256,One Leisure Ramsey,Cash Collection,702
http://statistics.data.gov.uk/id/local-authority/12UE,Huntingdonshire District Council,25/06/2015,170628,12658,5,66.96,Jade Security Services Ltd,CR422256,One Leisure Sawtry,Cash Collection,702
http://statistics.data.gov.uk/id/local-authority/12UE,Huntingdonshire District Council,25/06/2015,170628,12658,5,217.62,Jade Security Services Ltd,CR422256,One Leisure St Ives,Cash Collection,702
http://statistics.data.gov.uk/id/local-authority/12UE,Huntingdonshire District Council,25/06/2015,170628,12658,5,368.28,Jade Security Services Ltd,CR422256,One Leisure St Neots,Cash Collection,702
http://statistics.data.gov.uk/id/local-authority/12UE,Huntingdonshire District Council,04/06/2015,169883,INV0050,5,7517.76,Bigday Catering,CR453802,One Leisure St Ives,Catering,710
http://statistics.data.gov.uk/id/local-authority/12UE,Huntingdonshire District Council,04/06/2015,168989,NODA,5,7540.68,Bigday Catering,CR453802,One Leisure St Ives,Catering,710
http://statistics.data.gov.uk/id/local-authority/12UE,Huntingdonshire District Council,04/06/2015,169882,NODA,5,-7540.68,Bigday Catering,CR453802,One Leisure St Ives,Catering,710
http://statistics.data.gov.uk/id/local-authority/12UE,Huntingdonshire District Council,11/06/2015,170280,22015,5,755.75,Brookes,CR422866,Restaurant,Catering,710
http://statistics.data.gov.uk/id/local-authority/12UE,Huntingdonshire District Council,04/06/2015,169817,2102005936,5,298.08,Booker Cash And Carry,CR027611,Countryside,Catering Materials,559
http://statistics.data.gov.uk/id/local-authority/12UE,Huntingdonshire District Council,18/06/2015,170544,2102024120,5,282.07,Booker Cash And Carry,CR027611,Countryside,Catering Materials,559
http://statistics.data.gov.uk/id/local-authority/12UE,Huntingdonshire District Council,04/06/2015,169182,817523,5,713.9,King Bros,CR411339,Countryside,Catering Materials,559
http://statistics.data.gov.uk/id/local-authority/12UE,Huntingdonshire District Council,18/06/2015,170561,819291,5,324.42,King Bros,CR411339,Countryside,Catering Materials,559
http://statistics.data.gov.uk/id/local-authority/12UE,Huntingdonshire District Council,18/06/2015,170561,819291,5,77.92,King Bros,CR411339,Countryside,Catering Materials,559
http://statistics.data.gov.uk/id/local-authority/12UE,Huntingdonshire District Council,25/06/2015,170565,819998,5,809.58,King Bros,CR411339,Countryside,Catering Materials,559
http://statistics.data.gov.uk/id/local-authority/12UE,Huntingdonshire District Council,04/06/2015,169128,308,5,257.14,Snackline Chilled Ltd,CR422825,Countryside,Catering Materials,559
http://statistics.data.gov.uk/id/local-authority/12UE,Huntingdonshire District Council,25/06/2015,170247,415,5,330.17,Snackline Chilled Ltd,CR422825,Countryside,Catering Materials,559
http://statistics.data.gov.uk/id/local-authority/12UE,Huntingdonshire District Council,11/06/2015,170292,336909,5,273.83,South Lincs Food Service,CR033415,One Leisure Huntingdon,Catering Materials,559
http://statistics.data.gov.uk/id/local-authority/12UE,Huntingdonshire District Council,11/06/2015,168234,2101975261,5,19.27,Booker Cash And Carry,CR027611,One Leisure St Ives,Catering Materials,559
http://statistics.data.gov.uk/id/local-authority/12UE,Huntingdonshire District Council,04/06/2015,169763,2102003121,5,43.13,Booker Cash And Carry,CR027611,One Leisure St Ives,Catering Materials,559
http://statistics.data.gov.uk/id/local-authority/12UE,Huntingdonshire District Council,04/06/2015,169869,2102012426,5,170.71,Booker Cash And Carry,CR027611,One Leisure St Ives,Catering Materials,559
http://statistics.data.gov.uk/id/local-authority/12UE,Huntingdonshire District Council,11/06/2015,170146,2102021122,5,3.98,Booker Cash And Carry,CR027611,One Leisure St Ives,Catering Materials,559
http://statistics.data.gov.uk/id/local-authority/12UE,Huntingdonshire District Council,11/06/2015,170143,2102021506,5,59.61,Booker Cash And Carry,CR027611,One Leisure St Ives,Catering Materials,559
http://statistics.data.gov.uk/id/local-authority/12UE,Huntingdonshire District Council,25/06/2015,170297,2102032087,5,131.3,Booker Cash And Carry,CR027611,One Leisure St Ives,Catering Materials,559
http://statistics.data.gov.uk/id/local-authority/12UE,Huntingdonshire District Council,25/06/2015,170168,S1385045,5,280,Rollover Limited,CR482621,One Leisure St Ives,Catering Materials,559
http://statistics.data.gov.uk/id/local-authority/12UE,Huntingdonshire District Council,11/06/2015,170067,338133,5,142.96,South Lincs Food Service,CR033415,One Leisure St Ives,Catering Materials,559
http://statistics.data.gov.uk/id/local-authority/12UE,Huntingdonshire District Council,11/06/2015,169418,338135,5,734.56,South Lincs Food Service,CR033415,One Leisure St Ives,Catering Materials,559
http://statistics.data.gov.uk/id/local-authority/12UE,Huntingdonshire District Council,11/06/2015,170098,252201,5,128.11,Westminster Foodservice,CR455156,One Leisure St Ives,Catering Materials,559
http://statistics.data.gov.uk/id/local-authority/12UE,Huntingdonshire District Council,18/06/2015,170100,252620,5,192.11,Westminster Foodservice,CR455156,One Leisure St Ives,Catering Materials,559
http://statistics.data.gov.uk/id/local-authority/12UE,Huntingdonshire District Council,11/06/2015,169584,338315,5,191.07,South Lincs Food Service,CR033415,One Leisure St Neots,Catering Materials,559
http://statistics.data.gov.uk/id/local-authority/12UE,Huntingdonshire District Council,04/06/2015,169464,SI/02649072,5,3567.67,Nomix Enviro,CR002353,Grounds Maintenance (Combined),Chemicals,551
http://statistics.data.gov.uk/id/local-authority/12UE,Huntingdonshire District Council,04/06/2015,169773,C-0002095648,5,215.74,Computershare Vouchers Ltd,CR412205,Human Resources,Childcare Admin Vouchers,144
http://statistics.data.gov.uk/id/local-authority/12UE,Huntingdonshire District Council,18/06/2015,169902,52956,5,57.31,Maskearaid Ind Supplies,CR033423,E F H And Depots,Cleaning Materials,443
http://statistics.data.gov.uk/id/local-authority/12UE,Huntingdonshire District Council,04/06/2015,169371,3503568,1,105.72,Espo,CR006566,One Leisure Huntingdon,Cleaning Materials,443
http://statistics.data.gov.uk/id/local-authority/12UE,Huntingdonshire District Council,25/06/2015,170297,2102032087,5,55.12,Booker Cash And Carry,CR027611,One Leisure St Ives,Cleaning Materials,443
http://statistics.data.gov.uk/id/local-authority/12UE,Huntingdonshire District Council,18/06/2015,169859,52957,5,369.63,Maskearaid Ind Supplies,CR033423,One Leisure St Ives,Cleaning Materials,443
http://statistics.data.gov.uk/id/local-authority/12UE,Huntingdonshire District Council,11/06/2015,169218,52873,5,324.67,Maskearaid Ind Supplies,CR033423,One Leisure St Neots,Cleaning Materials,443
http://statistics.data.gov.uk/id/local-authority/12UE,Huntingdonshire District Council,18/06/2015,169902,52956,5,696.3,Maskearaid Ind Supplies,CR033423,Pathfinder House Site,Cleaning Materials,443
http://statistics.data.gov.uk/id/local-authority/12UE,Huntingdonshire District Council,11/06/2015,170292,336909,5,39.22,South Lincs Food Service,CR033415,One Leisure Huntingdon,Confectionery,572
http://statistics.data.gov.uk/id/local-authority/12UE,Huntingdonshire District Council,04/06/2015,169763,2102003121,5,38.24,Booker Cash And Carry,CR027611,One Leisure St Ives,Confectionery,572
http://statistics.data.gov.uk/id/local-authority/12UE,Huntingdonshire District Council,11/06/2015,170143,2102021506,5,5.1,Booker Cash And Carry,CR027611,One Leisure St Ives,Confectionery,572
http://statistics.data.gov.uk/id/local-authority/12UE,Huntingdonshire District Council,11/06/2015,170067,338133,5,35.59,South Lincs Food Service,CR033415,One Leisure St Ives,Confectionery,572
http://statistics.data.gov.uk/id/local-authority/12UE,Huntingdonshire District Council,11/06/2015,170098,252201,5,16.67,Westminster Foodservice,CR455156,One Leisure St Ives,Confectionery,572
http://statistics.data.gov.uk/id/local-authority/12UE,Huntingdonshire District Council,18/06/2015,170100,252620,5,16.67,Westminster Foodservice,CR455156,One Leisure St Ives,Confectionery,572
http://statistics.data.gov.uk/id/local-authority/12UE,Huntingdonshire District Council,11/06/2015,169584,338315,5,61.98,South Lincs Food Service,CR033415,One Leisure St Neots,Confectionery,572
http://statistics.data.gov.uk/id/local-authority/12UE,Huntingdonshire District Council,04/06/2015,169148,9159597,6,8448,East Of England Lga,CR422620,Chief Executive & Comt,Consultants,711
http://statistics.data.gov.uk/id/local-authority/12UE,Huntingdonshire District Council,04/06/2015,169165,9159598,6,7182,East Of England Lga,CR422620,Chief Executive & Comt,Consultants,711
http://statistics.data.gov.uk/id/local-authority/12UE,Huntingdonshire District Council,25/06/2015,170442,9161782,6,8316,East Of England Lga,CR422620,Chief Executive & Comt,Consultants,711
http://statistics.data.gov.uk/id/local-authority/12UE,Huntingdonshire District Council,25/06/2015,170443,9161788,6,3240,East Of England Lga,CR422620,Chief Executive & Comt,Consultants,711
http://statistics.data.gov.uk/id/local-authority/12UE,Huntingdonshire District Council,24/06/2015,170305,01/15/HDC001,5,13662,Hester Management Services Ltd,CR422903,Chief Executive & Comt,Consultants,711
http://statistics.data.gov.uk/id/local-authority/12UE,Huntingdonshire District Council,04/06/2015,170189,1287,5,2160,Iese,CR422759,Chief Executive & Comt,Consultants,711
http://statistics.data.gov.uk/id/local-authority/12UE,Huntingdonshire District Council,25/06/2015,170850,9935776,5,261.54,Snr Denton,CR453969,Dc Application Processing,Consultants,711
http://statistics.data.gov.uk/id/local-authority/12UE,Huntingdonshire District Council,11/06/2015,169844,103332,5,2400,Lavat,CR480410,Financial Services Mus,Consultants,711
http://statistics.data.gov.uk/id/local-authority/12UE,Huntingdonshire District Council,11/06/2015,169843,5057670,5,6000,Mishcon De Reya,CR422908,Financial Services Mus,Consultants,711
http://statistics.data.gov.uk/id/local-authority/12UE,Huntingdonshire District Council,11/06/2015,170684,HDC 2015-02,5,3544.8,Kelsall Consultancy Ltd,CR422497,Housing Associations,Consultants,711
http://statistics.data.gov.uk/id/local-authority/12UE,Huntingdonshire District Council,18/06/2015,170053,213344,5,840,Rsa Environmental Health Limited,CR482415,Human Resources,Consultants,711
http://statistics.data.gov.uk/id/local-authority/12UE,Huntingdonshire District Council,04/06/2015,170113,6217048,5,2220,Aecom Infrastructure & Env Uk Ltd,CR032963,Local Development Framework,Consultants,711
http://statistics.data.gov.uk/id/local-authority/12UE,Huntingdonshire District Council,04/06/2015,170268,5187,5,540,Dr Frank Hope,CR422911,Parks & Open Spaces,Consultants,711
http://statistics.data.gov.uk/id/local-authority/12UE,Huntingdonshire District Council,11/06/2015,169501,1238,5,1700,Wood Green Animal Shelters,CR019139,Animal Welfare,Contribution (Paid Out),810
http://statistics.data.gov.uk/id/local-authority/12UE,Huntingdonshire District Council,11/06/2015,169500,1239,5,1500,Wood Green Animal Shelters,CR019139,Animal Welfare,Contribution (Paid Out),810
http://statistics.data.gov.uk/id/local-authority/12UE,Huntingdonshire District Council,11/06/2015,170228,469,5,1699.25,Hact,CR455657,Concessionary Fares,Contribution (Paid Out),810
http://statistics.data.gov.uk/id/local-authority/12UE,Huntingdonshire District Council,25/06/2015,171041,ASIN 4535,5,5000,Cambridgeshire & Peterborough Fire Authority,CR405440,Emergency Planning,Contribution (Paid Out),810
http://statistics.data.gov.uk/id/local-authority/12UE,Huntingdonshire District Council,18/06/2015,582839,CONTRIBUTION,4,28721,Refuge,CR478527,Hostel Support,Contribution (Paid Out),810
http://statistics.data.gov.uk/id/local-authority/12UE,Huntingdonshire District Council,25/06/2015,582506,179895,5,53582.5,Cambridge City Council,CR017896,Housing  Benefits Admin,Contribution (Paid Out),810
http://statistics.data.gov.uk/id/local-authority/12UE,Huntingdonshire District Council,18/06/2015,582833,ST.IVES CP,5,12276,Waitrose,CR019599,Off Street Parking,Contribution (Paid Out),810
http://statistics.data.gov.uk/id/local-authority/12UE,Huntingdonshire District Council,04/06/2015,582311,2549,1,33010,St Neots Town Council,CR002483,Priory Centre,Contribution (Paid Out),810
http://statistics.data.gov.uk/id/local-authority/12UE,Huntingdonshire District Council,18/06/2015,169758,SIN011599,5,5040,The Wildlife Trust Beds Cambs & Northants,CR401987,Project Contributions,Contribution (Paid Out),810
http://statistics.data.gov.uk/id/local-authority/12UE,Huntingdonshire District Council,18/06/2015,169756,SIN011600,5,4200,The Wildlife Trust Beds Cambs & Northants,CR401987,Project Contributions,Contribution (Paid Out),810
http://statistics.data.gov.uk/id/local-authority/12UE,Huntingdonshire District Council,25/06/2015,170093,1071,5,300,Lawyers In Local Government (Llg),CR455820,Central Services M Us,Corporate Subscriptions,754
http://statistics.data.gov.uk/id/local-authority/12UE,Huntingdonshire District Council,11/06/2015,169430,ENET01126,5,576,Chartered Institute Of Environmental Health,CR002987,Environmental Health M Us,Corporate Subscriptions,754
http://statistics.data.gov.uk/id/local-authority/12UE,Huntingdonshire District Council,04/06/2015,169557,234335,5,256.86,Coulson & Sons Ltd,CR479347,Building Control Other,Dangerous Structures Removal,713
http://statistics.data.gov.uk/id/local-authority/12UE,Huntingdonshire District Council,04/06/2015,169773,C-0002095648,5,5136.5,Computershare Vouchers Ltd,CR412205,Child Care Vouchers - Payroll,Deductions Paid To Third Party,26
http://statistics.data.gov.uk/id/local-authority/12UE,Huntingdonshire District Council,25/06/2015,171379,10518458,5,468.87,Euramka Promotions Ltd,CR001864,Grounds Maintenance (Combined),Diesel,615
http://statistics.data.gov.uk/id/local-authority/12UE,Huntingdonshire District Council,25/06/2015,171379,10518458,5,764.08,Euramka Promotions Ltd,CR001864,Grounds Maintenance (Combined),Diesel,615
http://statistics.data.gov.uk/id/local-authority/12UE,Huntingdonshire District Council,25/06/2015,171379,10518458,5,266.43,Euramka Promotions Ltd,CR001864,Grounds Maintenance (Combined),Diesel,615
http://statistics.data.gov.uk/id/local-authority/12UE,Huntingdonshire District Council,11/06/2015,582518,687,1,334.45,St Ives Town Council,CR000701,Bus Stations,Electricity,420
http://statistics.data.gov.uk/id/local-authority/12UE,Huntingdonshire District Council,04/06/2015,170091,41226290,5,1568.14,Swalec,CR407130,Countryside,Electricity,420
http://statistics.data.gov.uk/id/local-authority/12UE,Huntingdonshire District Council,04/06/2015,170107,322226373,5,624.14,Swalec,CR407130,Countryside,Electricity,420
http://statistics.data.gov.uk/id/local-authority/12UE,Huntingdonshire District Council,25/06/2015,171290,941403268,5,677.17,Swalec,CR407130,Countryside,Electricity,420
http://statistics.data.gov.uk/id/local-authority/12UE,Huntingdonshire District Council,18/06/2015,170513,65924,5,2652.9,Haven Power Ltd,CR455940,E F H And Depots,Electricity,420
http://statistics.data.gov.uk/id/local-authority/12UE,Huntingdonshire District Council,18/06/2015,170820,481291201,5,1633.39,Swalec,CR407130,Housing Services Other,Electricity,420
http://statistics.data.gov.uk/id/local-authority/12UE,Huntingdonshire District Council,18/06/2015,170505,371226896,5,747.72,Swalec,CR407130,Off Street Parking,Electricity,420
http://statistics.data.gov.uk/id/local-authority/12UE,Huntingdonshire District Council,18/06/2015,170516,65916,5,4512.16,Haven Power Ltd,CR455940,One Leisure Huntingdon,Electricity,420
http://statistics.data.gov.uk/id/local-authority/12UE,Huntingdonshire District Council,11/06/2015,170537,381239505,5,905.6,Swalec,CR407130,One Leisure Huntingdon,Electricity,420
http://statistics.data.gov.uk/id/local-authority/12UE,Huntingdonshire District Council,18/06/2015,170842,341225796,5,2707.99,Swalec,CR407130,One Leisure Ramsey,Electricity,420
http://statistics.data.gov.uk/id/local-authority/12UE,Huntingdonshire District Council,18/06/2015,170843,941240466,5,3891.44,Swalec,CR407130,One Leisure Sawtry,Electricity,420
http://statistics.data.gov.uk/id/local-authority/12UE,Huntingdonshire District Council,18/06/2015,170511,65919,5,9944.13,Haven Power Ltd,CR455940,One Leisure St Ives,Electricity,420
http://statistics.data.gov.uk/id/local-authority/12UE,Huntingdonshire District Council,18/06/2015,170515,65922,5,2269.56,Haven Power Ltd,CR455940,One Leisure St Ives,Electricity,420
http://statistics.data.gov.uk/id/local-authority/12UE,Huntingdonshire District Council,18/06/2015,170509,65914,5,9283.4,Haven Power Ltd,CR455940,One Leisure St Neots,Electricity,420
http://statistics.data.gov.uk/id/local-authority/12UE,Huntingdonshire District Council,25/06/2015,171292,121573804,5,1214.64,Swalec,CR407130,Parks & Open Spaces,Electricity,420
http://statistics.data.gov.uk/id/local-authority/12UE,Huntingdonshire District Council,18/06/2015,170844,381239505,5,621.3,Swalec,CR407130,Parks & Open Spaces,Electricity,420
http://statistics.data.gov.uk/id/local-authority/12UE,Huntingdonshire District Council,18/06/2015,170508,65912,5,8748.42,Haven Power Ltd,CR455940,Pathfinder House Site,Electricity,420
http://statistics.data.gov.uk/id/local-authority/12UE,Huntingdonshire District Council,04/06/2015,168953,60006745,5,518.4,Phs Datashred,CR480152,Pathfinder House Site,Electricity,420
http://statistics.data.gov.uk/id/local-authority/12UE,Huntingdonshire District Council,25/06/2015,170936,618272,5,50.4,Callcredit Ltd,CR455548,Financial Services Mus,Enquiries,723
http://statistics.data.gov.uk/id/local-authority/12UE,Huntingdonshire District Council,04/06/2015,169041,615009,5,340.8,Callcredit Ltd,CR455548,Revenue Services Mus,Enquiries,723
http://statistics.data.gov.uk/id/local-authority/12UE,Huntingdonshire District Council,25/06/2015,170936,618272,5,234,Callcredit Ltd,CR455548,Revenue Services Mus,Enquiries,723
http://statistics.data.gov.uk/id/local-authority/12UE,Huntingdonshire District Council,25/06/2015,170148,39669,5,300,Dings Entertainment,CR412228,One Leisure St Ives,Entertainments Inc Cable Tv,744
http://statistics.data.gov.uk/id/local-authority/12UE,Huntingdonshire District Council,18/06/2015,171035,ROGER WILSON,5,1245.97,Starlite Roadshow,CR024127,One Leisure St Ives,Entertainments Inc Cable Tv,744
http://statistics.data.gov.uk/id/local-authority/12UE,Huntingdonshire District Council,11/06/2015,170265,66423,5,408,Warren Access Hire And Training,CR422771,Grounds Maintenance (Combined),Equipment Hire,507
http://statistics.data.gov.uk/id/local-authority/12UE,Huntingdonshire District Council,04/06/2015,167860,91936938,5,8.78,Speedo International Limited,CR41427,One Leisure Ramsey,Equipment Hire,507
http://statistics.data.gov.uk/id/local-authority/12UE,Huntingdonshire District Council,25/06/2015,169900,9369,5,454.76,Roger Wilson Electronics,CR028041,One Leisure St Ives,Equipment Hire,507
http://statistics.data.gov.uk/id/local-authority/12UE,Huntingdonshire District Council,11/06/2015,169574,4843,5,469.2,Inflatable Testing & Repairing Services Ltd,CR410226,One Leisure St Neots,Equipment Hire,507
http://statistics.data.gov.uk/id/local-authority/12UE,Huntingdonshire District Council,25/06/2015,171018,4084,5,1108.8,Access Hire And Hydraulics,CR422526,C C T V,Equipment Maintenance,511
http://statistics.data.gov.uk/id/local-authority/12UE,Huntingdonshire District Council,11/06/2015,169789,SIN176957,5,2840.84,Quadrant Security Group,CR027775,C C T V,Equipment Maintenance,511
http://statistics.data.gov.uk/id/local-authority/12UE,Huntingdonshire District Council,11/06/2015,170461,261359,5,318.6,Plot It,CR455069,Document Centre,Equipment Maintenance,511
http://statistics.data.gov.uk/id/local-authority/12UE,Huntingdonshire District Council,25/06/2015,170202,33838,5,1125.6,Merridale Mis Fuel Monitoring Ltd,CR478577,Fleet Management,Equipment Maintenance,511
http://statistics.data.gov.uk/id/local-authority/12UE,Huntingdonshire District Council,11/06/2015,170616,.420000606 R7,5,324,Imtech Aqua Maintenance Ltd,CR422225,Helpdesk,Equipment Maintenance,511
http://statistics.data.gov.uk/id/local-authority/12UE,Huntingdonshire District Council,11/06/2015,170617,42000018 RM,5,-324,Imtech Aqua Maintenance Ltd,CR422225,Helpdesk,Equipment Maintenance,511
http://statistics.data.gov.uk/id/local-authority/12UE,Huntingdonshire District Council,11/06/2015,169874,4841,5,596.4,Inflatable Testing & Repairing Services Ltd,CR410226,One Leisure Huntingdon,Equipment Maintenance,511
http://statistics.data.gov.uk/id/local-authority/12UE,Huntingdonshire District Council,11/06/2015,169874,4841,5,340.8,Inflatable Testing & Repairing Services Ltd,CR410226,One Leisure Ramsey,Equipment Maintenance,511
http://statistics.data.gov.uk/id/local-authority/12UE,Huntingdonshire District Council,25/06/2015,170624,4853,5,274.8,Inflatable Testing & Repairing Services Ltd,CR410226,One Leisure Ramsey,Equipment Maintenance,511
http://statistics.data.gov.uk/id/local-authority/12UE,Huntingdonshire District Council,25/06/2015,170625,213070035,5,425.2,Startrac,CR429227,One Leisure Ramsey,Equipment Maintenance,511
http://statistics.data.gov.uk/id/local-authority/12UE,Huntingdonshire District Council,11/06/2015,169874,4841,5,340.8,Inflatable Testing & Repairing Services Ltd,CR410226,One Leisure Sawtry,Equipment Maintenance,511
http://statistics.data.gov.uk/id/local-authority/12UE,Huntingdonshire District Council,11/06/2015,170459,70993,5,549.17,Servicesport (Uk) Ltd,CR422867,One Leisure Sawtry,Equipment Maintenance,511
http://statistics.data.gov.uk/id/local-authority/12UE,Huntingdonshire District Council,25/06/2015,170458,71440,5,549.17,Servicesport (Uk) Ltd,CR422867,One Leisure Sawtry,Equipment Maintenance,511
http://statistics.data.gov.uk/id/local-authority/12UE,Huntingdonshire District Council,04/06/2015,170097,3195,5,414.58,Associated Catering Equipment,CR481172,One Leisure St Ives,Equipment Maintenance,511
http://statistics.data.gov.uk/id/local-authority/12UE,Huntingdonshire District Council,11/06/2015,169874,4841,5,426,Inflatable Testing & Repairing Services Ltd,CR410226,One Leisure St Ives,Equipment Maintenance,511
http://statistics.data.gov.uk/id/local-authority/12UE,Huntingdonshire District Council,11/06/2015,170269,INV001435,5,1250,Lynx Bowling Services,CR455532,One Leisure St Ives,Equipment Maintenance,511
http://statistics.data.gov.uk/id/local-authority/12UE,Huntingdonshire District Council,04/06/2015,170180,71004,5,1162.13,Servicesport (Uk) Ltd,CR422867,One Leisure St Ives,Equipment Maintenance,511
http://statistics.data.gov.uk/id/local-authority/12UE,Huntingdonshire District Council,25/06/2015,170182,71436,5,1162.13,Servicesport (Uk) Ltd,CR422867,One Leisure St Ives,Equipment Maintenance,511
http://statistics.data.gov.uk/id/local-authority/12UE,Huntingdonshire District Council,11/06/2015,169874,4841,5,340.8,Inflatable Testing & Repairing Services Ltd,CR410226,One Leisure St Neots,Equipment Maintenance,511
http://statistics.data.gov.uk/id/local-authority/12UE,Huntingdonshire District Council,25/06/2015,170918,242690,5,256.2,Walker Fire Uk Ltd,CR455756,One Leisure St Neots,Equipment Maintenance,511
http://statistics.data.gov.uk/id/local-authority/12UE,Huntingdonshire District Council,18/06/2015,169834,12348,5,1140,Innovations Visual Communication Systems Ltd,CR422257,Pathfinder House Site,Equipment Maintenance,511
http://statistics.data.gov.uk/id/local-authority/12UE,Huntingdonshire District Council,18/06/2015,169641,498970,5,2268,Environmental Scientifics Group Ltd,CR416941,Air Quality,Equipment Purchases,500
http://statistics.data.gov.uk/id/local-authority/12UE,Huntingdonshire District Council,11/06/2015,170587,14,5,2400,Peacock Engineering,CR410043,Countryside,Equipment Purchases,500
http://statistics.data.gov.uk/id/local-authority/12UE,Huntingdonshire District Council,25/06/2015,170601,38080,5,326.55,Starmaker Welding Services,CR029912,Fleet Management,Equipment Purchases,500
http://statistics.data.gov.uk/id/local-authority/12UE,Huntingdonshire District Council,25/06/2015,170541,131380,5,338.54,Arthur Ibbett Ltd,CR000430,Grounds Maintenance (Combined),Equipment Purchases,500
http://statistics.data.gov.uk/id/local-authority/12UE,Huntingdonshire District Council,18/06/2015,169824,34075,5,460.62,Groundsman,CR452706,Grounds Maintenance (Combined),Equipment Purchases,500
http://statistics.data.gov.uk/id/local-authority/12UE,Huntingdonshire District Council,04/06/2015,169371,3503568,1,39.41,Espo,CR006566,One Leisure Huntingdon,Equipment Purchases,500
http://statistics.data.gov.uk/id/local-authority/12UE,Huntingdonshire District Council,18/06/2015,169897,"4,335",5,288,Fitness Warehouse Ltd,CR422295,One Leisure Huntingdon,Equipment Purchases,500
http://statistics.data.gov.uk/id/local-authority/12UE,Huntingdonshire District Council,25/06/2015,171323,758558,5,1260.32,J P Lennard Ltd,CR028595,One Leisure Huntingdon,Equipment Purchases,500
http://statistics.data.gov.uk/id/local-authority/12UE,Huntingdonshire District Council,04/06/2015,168998,9365,5,298.8,Roger Wilson Electronics,CR028041,One Leisure Huntingdon,Equipment Purchases,500
http://statistics.data.gov.uk/id/local-authority/12UE,Huntingdonshire District Council,04/06/2015,169869,2102012426,5,67.28,Booker Cash And Carry,CR027611,One Leisure St Ives,Equipment Purchases,500
http://statistics.data.gov.uk/id/local-authority/12UE,Huntingdonshire District Council,04/06/2015,169873,9367,5,286.8,Roger Wilson Electronics,CR028041,One Leisure St Ives,Equipment Purchases,500
http://statistics.data.gov.uk/id/local-authority/12UE,Huntingdonshire District Council,25/06/2015,170168,S1385045,5,36,Rollover Limited,CR482621,One Leisure St Ives,Equipment Purchases,500
http://statistics.data.gov.uk/id/local-authority/12UE,Huntingdonshire District Council,25/06/2015,170172,9373,5,258.82,Roger Wilson Electronics,CR028041,One Leisure St Neots,Equipment Purchases,500
http://statistics.data.gov.uk/id/local-authority/12UE,Huntingdonshire District Council,11/06/2015,169790,5301,5,576,Lattenbury Services,CR406847,Watercourses,External Works,KX99
http://statistics.data.gov.uk/id/local-authority/12UE,Huntingdonshire District Council,11/06/2015,169791,5302,5,10848,Lattenbury Services,CR406847,Watercourses,External Works,KX99
http://statistics.data.gov.uk/id/local-authority/12UE,Huntingdonshire District Council,18/06/2015,171045,12489089940,5,444.7,E-On Energy,CR416430,E F H And Depots,Gas,421
http://statistics.data.gov.uk/id/local-authority/12UE,Huntingdonshire District Council,18/06/2015,171057,12489088100,5,4697.89,E-On Energy,CR416430,One Leisure Huntingdon,Gas,421
http://statistics.data.gov.uk/id/local-authority/12UE,Huntingdonshire District Council,18/06/2015,171047,12489088970,5,787.91,E-On Energy,CR416430,One Leisure Huntingdon,Gas,421
http://statistics.data.gov.uk/id/local-authority/12UE,Huntingdonshire District Council,18/06/2015,171048,12489090790,5,1556.6,E-On Energy,CR416430,One Leisure Ramsey,Gas,421
http://statistics.data.gov.uk/id/local-authority/12UE,Huntingdonshire District Council,18/06/2015,171049,12489088700,5,1737.61,E-On Energy,CR416430,One Leisure Sawtry,Gas,421
http://statistics.data.gov.uk/id/local-authority/12UE,Huntingdonshire District Council,18/06/2015,171046,12489089510,5,703.97,E-On Energy,CR416430,One Leisure St Ives,Gas,421
http://statistics.data.gov.uk/id/local-authority/12UE,Huntingdonshire District Council,18/06/2015,171051,12489090950,5,5645.27,E-On Energy,CR416430,One Leisure St Ives,Gas,421
http://statistics.data.gov.uk/id/local-authority/12UE,Huntingdonshire District Council,18/06/2015,171055,12489088380,5,3953.69,E-On Energy,CR416430,One Leisure St Neots,Gas,421
http://statistics.data.gov.uk/id/local-authority/12UE,Huntingdonshire District Council,18/06/2015,171053,12489088540,5,315.85,E-On Energy,CR416430,One Leisure St Neots,Gas,421
http://statistics.data.gov.uk/id/local-authority/12UE,Huntingdonshire District Council,18/06/2015,171056,13313569100,5,1217.44,E-On Energy,CR416430,Pathfinder House Site,Gas,421
http://statistics.data.gov.uk/id/local-authority/12UE,Huntingdonshire District Council,04/06/2015,168974,556238,5,37.05,Lacons,CR422174,One Leisure St Ives,Gas Cylinders (Incl. Bars),567
http://statistics.data.gov.uk/id/local-authority/12UE,Huntingdonshire District Council,11/06/2015,169443,557501,5,55.86,Lacons,CR422174,One Leisure St Ives,Gas Cylinders (Incl. Bars),567
http://statistics.data.gov.uk/id/local-authority/12UE,Huntingdonshire District Council,25/06/2015,170156,559197,5,37.04,Lacons,CR422174,One Leisure St Ives,Gas Cylinders (Incl. Bars),567
http://statistics.data.gov.uk/id/local-authority/12UE,Huntingdonshire District Council,18/06/2015,170830,111060,5,7501.8,County Security Services Ltd,CR422439,Leisure Centres Capital,Gen Building Mtce - Planned,304
http://statistics.data.gov.uk/id/local-authority/12UE,Huntingdonshire District Council,11/06/2015,169607,15445,5,355.2,Bh Doors & Engineering Ltd,CR455707,One Leisure Huntingdon,Gen Building Mtce - Planned,304
http://statistics.data.gov.uk/id/local-authority/12UE,Huntingdonshire District Council,25/06/2015,170894,9380,5,1056,Roger Wilson Electronics,CR028041,One Leisure Huntingdon,Gen Building Mtce - Planned,304
http://statistics.data.gov.uk/id/local-authority/12UE,Huntingdonshire District Council,11/06/2015,169175,54472,5,255.19,Beebys Limited,CR415822,One Leisure St Ives,Gen Building Mtce - Planned,304
http://statistics.data.gov.uk/id/local-authority/12UE,Huntingdonshire District Council,25/06/2015,170680,CD970002445,5,354,Omega Red Group,CR411029,One Leisure St Ives,Gen Building Mtce - Planned,304
http://statistics.data.gov.uk/id/local-authority/12UE,Huntingdonshire District Council,25/06/2015,170894,9380,5,154.8,Roger Wilson Electronics,CR028041,One Leisure St Neots,Gen Building Mtce - Planned,304
http://statistics.data.gov.uk/id/local-authority/12UE,Huntingdonshire District Council,04/06/2015,169826,2447,5,807.16,Terry Calvert Ltd,CR126804,Countryside,Gen Building Mtce - Responsive,303
http://statistics.data.gov.uk/id/local-authority/12UE,Huntingdonshire District Council,25/06/2015,171445,199,5,735,Dms Home Improvements & Electrical,CR479202,Energy Efficiency,Gen Building Mtce - Responsive,303
http://statistics.data.gov.uk/id/local-authority/12UE,Huntingdonshire District Council,11/06/2015,169601,1330,5,315.6,Iceberg,CR455348,Energy Efficiency,Gen Building Mtce - Responsive,303
http://statistics.data.gov.uk/id/local-authority/12UE,Huntingdonshire District Council,25/06/2015,170927,,5,1690,Richard Sistrom Painting & Decorating,CR422887,Leisure Centres Capital,Gen Building Mtce - Responsive,303
http://statistics.data.gov.uk/id/local-authority/12UE,Huntingdonshire District Council,25/06/2015,170900,9384,5,465.1,Roger Wilson Electronics,CR028041,Leisure Centres Capital,Gen Building Mtce - Responsive,303
http://statistics.data.gov.uk/id/local-authority/12UE,Huntingdonshire District Council,04/06/2015,167042,26834/4663,5,5726.16,J Breheny Contractors Ltd,CR000314,Oak Tree Health Centre,Gen Building Mtce - Responsive,303
http://statistics.data.gov.uk/id/local-authority/12UE,Huntingdonshire District Council,04/06/2015,170092,4663/26861,5,-757.62,J Breheny Contractors Ltd,CR000314,Oak Tree Health Centre,Gen Building Mtce - Responsive,303
http://statistics.data.gov.uk/id/local-authority/12UE,Huntingdonshire District Council,18/06/2015,170834,1194BP180,5,1110,Dyno Rod Ltd,CR455660,One Leisure Huntingdon,Gen Building Mtce - Responsive,303
http://statistics.data.gov.uk/id/local-authority/12UE,Huntingdonshire District Council,04/06/2015,168998,9365,5,106.8,Roger Wilson Electronics,CR028041,One Leisure Huntingdon,Gen Building Mtce - Responsive,303
http://statistics.data.gov.uk/id/local-authority/12UE,Huntingdonshire District Council,18/06/2015,169862,2336,5,4108.8,Stanair Industrial Door Services Ltd,CR403493,One Leisure Ramsey,Gen Building Mtce - Responsive,303
http://statistics.data.gov.uk/id/local-authority/12UE,Huntingdonshire District Council,18/06/2015,169893,,5,255,D H Property Maintneance & Landscapes,CR422909,One Leisure St Ives,Gen Building Mtce - Responsive,303
http://statistics.data.gov.uk/id/local-authority/12UE,Huntingdonshire District Council,04/06/2015,168988,23279,5,1074,Genesis  Lifts Ltd,CR478241,One Leisure St Ives,Gen Building Mtce - Responsive,303
http://statistics.data.gov.uk/id/local-authority/12UE,Huntingdonshire District Council,18/06/2015,169861,OLI  06,5,1495,Lui The Plumber,CR422379,One Leisure St Ives,Gen Building Mtce - Responsive,303
http://statistics.data.gov.uk/id/local-authority/12UE,Huntingdonshire District Council,04/06/2015,169873,9367,5,391.15,Roger Wilson Electronics,CR028041,One Leisure St Ives,Gen Building Mtce - Responsive,303
http://statistics.data.gov.uk/id/local-authority/12UE,Huntingdonshire District Council,04/06/2015,169873,9367,5,27,Roger Wilson Electronics,CR028041,One Leisure St Ives,Gen Building Mtce - Responsive,303
http://statistics.data.gov.uk/id/local-authority/12UE,Huntingdonshire District Council,04/06/2015,169873,9367,5,34.8,Roger Wilson Electronics,CR028041,One Leisure St Ives,Gen Building Mtce - Responsive,303
http://statistics.data.gov.uk/id/local-authority/12UE,Huntingdonshire District Council,04/06/2015,169873,9367,5,158.4,Roger Wilson Electronics,CR028041,One Leisure St Ives,Gen Building Mtce - Responsive,303
http://statistics.data.gov.uk/id/local-authority/12UE,Huntingdonshire District Council,04/06/2015,169873,9367,5,1361.11,Roger Wilson Electronics,CR028041,One Leisure St Ives,Gen Building Mtce - Responsive,303
http://statistics.data.gov.uk/id/local-authority/12UE,Huntingdonshire District Council,25/06/2015,170897,9382,5,1576.8,Roger Wilson Electronics,CR028041,One Leisure St Ives,Gen Building Mtce - Responsive,303
http://statistics.data.gov.uk/id/local-authority/12UE,Huntingdonshire District Council,25/06/2015,170271,5,5,670,Skl Property Services,CR422708,One Leisure St Ives,Gen Building Mtce - Responsive,303
http://statistics.data.gov.uk/id/local-authority/12UE,Huntingdonshire District Council,25/06/2015,170172,9373,5,195.19,Roger Wilson Electronics,CR028041,One Leisure St Neots,Gen Building Mtce - Responsive,303
http://statistics.data.gov.uk/id/local-authority/12UE,Huntingdonshire District Council,18/06/2015,170299,57998,5,255,Britannia Fire & Security Ltd,CR410090,Pathfinder House Site,Gen Building Mtce - Responsive,303
http://statistics.data.gov.uk/id/local-authority/12UE,Huntingdonshire District Council,25/06/2015,170073,37502,5,342,Dal-Rod (Camridgeshire),CR413675,Pathfinder House Site,Gen Building Mtce - Responsive,303
http://statistics.data.gov.uk/id/local-authority/12UE,Huntingdonshire District Council,18/06/2015,169770,12346,5,1756.8,Innovations Visual Communication Systems Ltd,CR422257,Pathfinder House Site,Gen Building Mtce - Responsive,303
http://statistics.data.gov.uk/id/local-authority/12UE,Huntingdonshire District Council,25/06/2015,167052,26848/4663,5,1104.48,J Breheny Contractors Ltd,CR000314,Pathfinder House Site,Gen Building Mtce - Responsive,303
http://statistics.data.gov.uk/id/local-authority/12UE,Huntingdonshire District Council,25/06/2015,170480,6167,5,8100,Service Group Interiors,CR422821,Pathfinder House Site,Gen Building Mtce - Responsive,303
http://statistics.data.gov.uk/id/local-authority/12UE,Huntingdonshire District Council,25/06/2015,171410,,5,2500,Care Network,CR477579,Miscellaneous Grants,Grants (Paid Out),800
http://statistics.data.gov.uk/id/local-authority/12UE,Huntingdonshire District Council,25/06/2015,171411,2 QTR GRANT,5,4750,Disability Information Service Huntingdonshir,CR408884,Miscellaneous Grants,Grants (Paid Out),800
http://statistics.data.gov.uk/id/local-authority/12UE,Huntingdonshire District Council,25/06/2015,171408,GRANT  PAYMENT,4,9250,Huntingdonshire  Volunteer Centre,CR410643,Miscellaneous Grants,Grants (Paid Out),800
http://statistics.data.gov.uk/id/local-authority/12UE,Huntingdonshire District Council,25/06/2015,171409,2 QTR GRANT,4,4425,Hunts Shopmobility,CR429218,Miscellaneous Grants,Grants (Paid Out),800
http://statistics.data.gov.uk/id/local-authority/12UE,Huntingdonshire District Council,25/06/2015,170533,900705880,5,850.2,Portakabin Ltd,CR478566,Miscellaneous Grants,Grants (Paid Out),800
http://statistics.data.gov.uk/id/local-authority/12UE,Huntingdonshire District Council,25/06/2015,170531,900705881,5,807.04,Portakabin Ltd,CR478566,Miscellaneous Grants,Grants (Paid Out),800
http://statistics.data.gov.uk/id/local-authority/12UE,Huntingdonshire District Council,25/06/2015,582944,2ND QTR GRANT,4,26328.88,Rural Cambs Citzens Advice Bureau,CR455454,Miscellaneous Grants,Grants (Paid Out),800
http://statistics.data.gov.uk/id/local-authority/12UE,Huntingdonshire District Council,25/06/2015,171420,2434,5,1851.6,Complete Weed Control,CR413464,One Leisure St Ives,Grounds Mtce Contractors,351
http://statistics.data.gov.uk/id/local-authority/12UE,Huntingdonshire District Council,11/06/2015,169567,77,5,416,H & P Federation Of Womens Institute,CR407176,Dc Application Processing,Hire Of Rooms,411
http://statistics.data.gov.uk/id/local-authority/12UE,Huntingdonshire District Council,04/06/2015,169453,INV1564465,5,469,Interaction Recruitment Plc,CR007892,C C T V,Hired Staff,100
http://statistics.data.gov.uk/id/local-authority/12UE,Huntingdonshire District Council,18/06/2015,171025,INV1568303,5,325.58,Interaction Recruitment Plc,CR007892,C C T V,Hired Staff,100
http://statistics.data.gov.uk/id/local-authority/12UE,Huntingdonshire District Council,25/06/2015,171022,INV1570198,5,418.61,Interaction Recruitment Plc,CR007892,C C T V,Hired Staff,100
http://statistics.data.gov.uk/id/local-authority/12UE,Huntingdonshire District Council,04/06/2015,169366,9954,5,255.61,Lightning Recruitment,CR028184,Call Centre,Hired Staff,100
http://statistics.data.gov.uk/id/local-authority/12UE,Huntingdonshire District Council,11/06/2015,169488,10004,5,405.97,Lightning Recruitment,CR028184,Call Centre,Hired Staff,100
http://statistics.data.gov.uk/id/local-authority/12UE,Huntingdonshire District Council,18/06/2015,170089,10060,5,421.01,Lightning Recruitment,CR028184,Call Centre,Hired Staff,100
http://statistics.data.gov.uk/id/local-authority/12UE,Huntingdonshire District Council,25/06/2015,170124,10106,5,300.72,Lightning Recruitment,CR028184,Call Centre,Hired Staff,100
http://statistics.data.gov.uk/id/local-authority/12UE,Huntingdonshire District Council,04/06/2015,169771,3059165,5,1220.04,Venn Group Recruitment,CR415403,Central Services M Us,Hired Staff,100
http://statistics.data.gov.uk/id/local-authority/12UE,Huntingdonshire District Council,11/06/2015,169401,3061545,5,894.7,Venn Group Recruitment,CR415403,Central Services M Us,Hired Staff,100
http://statistics.data.gov.uk/id/local-authority/12UE,Huntingdonshire District Council,18/06/2015,169767,3063734,5,1220.04,Venn Group Recruitment,CR415403,Central Services M Us,Hired Staff,100
http://statistics.data.gov.uk/id/local-authority/12UE,Huntingdonshire District Council,25/06/2015,170047,3065944,5,732.02,Venn Group Recruitment,CR415403,Central Services M Us,Hired Staff,100
http://statistics.data.gov.uk/id/local-authority/12UE,Huntingdonshire District Council,18/06/2015,170153,4000002617,5,342,1st Choice Recruitment,CR416849,Countryside,Hired Staff,100
http://statistics.data.gov.uk/id/local-authority/12UE,Huntingdonshire District Council,25/06/2015,170554,4000002640,5,273.6,1st Choice Recruitment,CR416849,Countryside,Hired Staff,100
http://statistics.data.gov.uk/id/local-authority/12UE,Huntingdonshire District Council,11/06/2015,169489,10003,5,466.12,Lightning Recruitment,CR028184,Customer Service Centres,Hired Staff,100
http://statistics.data.gov.uk/id/local-authority/12UE,Huntingdonshire District Council,25/06/2015,170275,10105,5,451.08,Lightning Recruitment,CR028184,Customer Service Centres,Hired Staff,100
http://statistics.data.gov.uk/id/local-authority/12UE,Huntingdonshire District Council,04/06/2015,169364,9956,5,637.2,Lightning Recruitment,CR028184,Development Team,Hired Staff,100
http://statistics.data.gov.uk/id/local-authority/12UE,Huntingdonshire District Council,11/06/2015,169487,10005,5,637.2,Lightning Recruitment,CR028184,Development Team,Hired Staff,100
http://statistics.data.gov.uk/id/local-authority/12UE,Huntingdonshire District Council,18/06/2015,170090,10061,5,637.2,Lightning Recruitment,CR028184,Development Team,Hired Staff,100
http://statistics.data.gov.uk/id/local-authority/12UE,Huntingdonshire District Council,25/06/2015,170126,10107,5,637.2,Lightning Recruitment,CR028184,Development Team,Hired Staff,100
http://statistics.data.gov.uk/id/local-authority/12UE,Huntingdonshire District Council,04/06/2015,169519,IN0439107,5,3616.52,Staffline Group,CR416827,Domestic Refuse,Hired Staff,100
http://statistics.data.gov.uk/id/local-authority/12UE,Huntingdonshire District Council,04/06/2015,169517,IN0439109,5,2835.58,Staffline Group,CR416827,Domestic Refuse,Hired Staff,100
http://statistics.data.gov.uk/id/local-authority/12UE,Huntingdonshire District Council,25/06/2015,170593,IN0443428,5,4461.32,Staffline Group,CR416827,Domestic Refuse,Hired Staff,100
http://statistics.data.gov.uk/id/local-authority/12UE,Huntingdonshire District Council,25/06/2015,170596,IN0443429,5,3240.83,Staffline Group,CR416827,Domestic Refuse,Hired Staff,100
http://statistics.data.gov.uk/id/local-authority/12UE,Huntingdonshire District Council,11/06/2015,170253,INO440998,5,3540.83,Staffline Group,CR416827,Domestic Refuse,Hired Staff,100
http://statistics.data.gov.uk/id/local-authority/12UE,Huntingdonshire District Council,11/06/2015,170250,INO441000,5,2062.42,Staffline Group,CR416827,Domestic Refuse,Hired Staff,100
http://statistics.data.gov.uk/id/local-authority/12UE,Huntingdonshire District Council,18/06/2015,170263,INO442203,5,3917.72,Staffline Group,CR416827,Domestic Refuse,Hired Staff,100
http://statistics.data.gov.uk/id/local-authority/12UE,Huntingdonshire District Council,18/06/2015,170259,INO442204,5,2908.69,Staffline Group,CR416827,Domestic Refuse,Hired Staff,100
http://statistics.data.gov.uk/id/local-authority/12UE,Huntingdonshire District Council,04/06/2015,169404,167339,5,1162.08,The Oyster Partnership,CR480450,Environmental Management,Hired Staff,100
http://statistics.data.gov.uk/id/local-authority/12UE,Huntingdonshire District Council,11/06/2015,169895,1067639,5,1150.2,The Oyster Partnership,CR480450,Environmental Management,Hired Staff,100
http://statistics.data.gov.uk/id/local-authority/12UE,Huntingdonshire District Council,18/06/2015,170450,1067926,5,1933.38,The Oyster Partnership,CR480450,Environmental Management,Hired Staff,100
http://statistics.data.gov.uk/id/local-authority/12UE,Huntingdonshire District Council,11/06/2015,170569,BC00100,5,6480,Barry Cornelius Associates,CR422523,Financial Services Mus,Hired Staff,100
http://statistics.data.gov.uk/id/local-authority/12UE,Huntingdonshire District Council,04/06/2015,169436,INV1564464,5,504,Interaction Recruitment Plc,CR007892,Financial Services Mus,Hired Staff,100
http://statistics.data.gov.uk/id/local-authority/12UE,Huntingdonshire District Council,11/06/2015,169783,INV1566368,5,621.6,Interaction Recruitment Plc,CR007892,Financial Services Mus,Hired Staff,100
http://statistics.data.gov.uk/id/local-authority/12UE,Huntingdonshire District Council,18/06/2015,170129,INV1568305,5,621.6,Interaction Recruitment Plc,CR007892,Financial Services Mus,Hired Staff,100
http://statistics.data.gov.uk/id/local-authority/12UE,Huntingdonshire District Council,25/06/2015,170464,INV1570200,5,504,Interaction Recruitment Plc,CR007892,Financial Services Mus,Hired Staff,100
http://statistics.data.gov.uk/id/local-authority/12UE,Huntingdonshire District Council,11/06/2015,169614,10001,5,661.12,Lightning Recruitment,CR028184,Financial Services Mus,Hired Staff,100
http://statistics.data.gov.uk/id/local-authority/12UE,Huntingdonshire District Council,18/06/2015,169840,10058,5,661.12,Lightning Recruitment,CR028184,Financial Services Mus,Hired Staff,100
http://statistics.data.gov.uk/id/local-authority/12UE,Huntingdonshire District Council,18/06/2015,169839,10062,5,628.99,Lightning Recruitment,CR028184,Financial Services Mus,Hired Staff,100
http://statistics.data.gov.uk/id/local-authority/12UE,Huntingdonshire District Council,25/06/2015,170125,10103,5,589.64,Lightning Recruitment,CR028184,Financial Services Mus,Hired Staff,100
http://statistics.data.gov.uk/id/local-authority/12UE,Huntingdonshire District Council,25/06/2015,170123,10108,5,471.74,Lightning Recruitment,CR028184,Financial Services Mus,Hired Staff,100
http://statistics.data.gov.uk/id/local-authority/12UE,Huntingdonshire District Council,04/06/2015,169634,9953A,5,536.04,Lightning Recruitment,CR028184,Financial Services Mus,Hired Staff,100
http://statistics.data.gov.uk/id/local-authority/12UE,Huntingdonshire District Council,04/06/2015,169527,IN0439108,5,493.42,Staffline Group,CR416827,Grounds Maintenance (Combined),Hired Staff,100
http://statistics.data.gov.uk/id/local-authority/12UE,Huntingdonshire District Council,11/06/2015,170258,INO440999,5,627.98,Staffline Group,CR416827,Grounds Maintenance (Combined),Hired Staff,100
http://statistics.data.gov.uk/id/local-authority/12UE,Huntingdonshire District Council,25/06/2015,170080,EDRM MAY15,5,2345,Edrm Systems Ltd,CR416278,Helpdesk,Hired Staff,100
http://statistics.data.gov.uk/id/local-authority/12UE,Huntingdonshire District Council,04/06/2015,169203,R006745,5,1320,Premier It Recruitment Ltd,CR454029,Helpdesk,Hired Staff,100
http://statistics.data.gov.uk/id/local-authority/12UE,Huntingdonshire District Council,04/06/2015,169204,R006746,5,1320,Premier It Recruitment Ltd,CR454029,Helpdesk,Hired Staff,100
http://statistics.data.gov.uk/id/local-authority/12UE,Huntingdonshire District Council,04/06/2015,169205,R006747,5,1320,Premier It Recruitment Ltd,CR454029,Helpdesk,Hired Staff,100
http://statistics.data.gov.uk/id/local-authority/12UE,Huntingdonshire District Council,11/06/2015,169206,R006826,5,1056,Premier It Recruitment Ltd,CR454029,Helpdesk,Hired Staff,100
http://statistics.data.gov.uk/id/local-authority/12UE,Huntingdonshire District Council,11/06/2015,169207,R006827,5,1056,Premier It Recruitment Ltd,CR454029,Helpdesk,Hired Staff,100
http://statistics.data.gov.uk/id/local-authority/12UE,Huntingdonshire District Council,11/06/2015,169208,R006828,5,1056,Premier It Recruitment Ltd,CR454029,Helpdesk,Hired Staff,100
http://statistics.data.gov.uk/id/local-authority/12UE,Huntingdonshire District Council,18/06/2015,169775,R007026,5,1320,Premier It Recruitment Ltd,CR454029,Helpdesk,Hired Staff,100
http://statistics.data.gov.uk/id/local-authority/12UE,Huntingdonshire District Council,18/06/2015,169774,R007027,5,1320,Premier It Recruitment Ltd,CR454029,Helpdesk,Hired Staff,100
http://statistics.data.gov.uk/id/local-authority/12UE,Huntingdonshire District Council,18/06/2015,169772,R007028,5,1320,Premier It Recruitment Ltd,CR454029,Helpdesk,Hired Staff,100
http://statistics.data.gov.uk/id/local-authority/12UE,Huntingdonshire District Council,25/06/2015,170083,R007117,5,1320,Premier It Recruitment Ltd,CR454029,Helpdesk,Hired Staff,100
http://statistics.data.gov.uk/id/local-authority/12UE,Huntingdonshire District Council,25/06/2015,170082,R007118,5,1320,Premier It Recruitment Ltd,CR454029,Helpdesk,Hired Staff,100
http://statistics.data.gov.uk/id/local-authority/12UE,Huntingdonshire District Council,25/06/2015,170081,R007119,5,1320,Premier It Recruitment Ltd,CR454029,Helpdesk,Hired Staff,100
http://statistics.data.gov.uk/id/local-authority/12UE,Huntingdonshire District Council,25/06/2015,170085,R007207,5,1056,Premier It Recruitment Ltd,CR454029,Helpdesk,Hired Staff,100
http://statistics.data.gov.uk/id/local-authority/12UE,Huntingdonshire District Council,04/06/2015,170210,10059,5,490.62,Lightning Recruitment,CR028184,Information Manager,Hired Staff,100
http://statistics.data.gov.uk/id/local-authority/12UE,Huntingdonshire District Council,04/06/2015,170211,10104,5,397.8,Lightning Recruitment,CR028184,Information Manager,Hired Staff,100
http://statistics.data.gov.uk/id/local-authority/12UE,Huntingdonshire District Council,18/06/2015,170948,10148,5,397.8,Lightning Recruitment,CR028184,Information Manager,Hired Staff,100
http://statistics.data.gov.uk/id/local-authority/12UE,Huntingdonshire District Council,18/06/2015,170949,10195,5,490.62,Lightning Recruitment,CR028184,Information Manager,Hired Staff,100
http://statistics.data.gov.uk/id/local-authority/12UE,Huntingdonshire District Council,04/06/2015,170050,HDC033,5,2484,Cfl Estate Services,CR455208,Property Development And Mgt,Hired Staff,100
http://statistics.data.gov.uk/id/local-authority/12UE,Huntingdonshire District Council,04/06/2015,170049,HDC034,5,1554,Cfl Estate Services,CR455208,Property Development And Mgt,Hired Staff,100
http://statistics.data.gov.uk/id/local-authority/12UE,Huntingdonshire District Council,04/06/2015,169520,IN0439106,5,2737.01,Staffline Group,CR416827,Recycling,Hired Staff,100
http://statistics.data.gov.uk/id/local-authority/12UE,Huntingdonshire District Council,25/06/2015,170591,IN0443427,5,2824.3,Staffline Group,CR416827,Recycling,Hired Staff,100
http://statistics.data.gov.uk/id/local-authority/12UE,Huntingdonshire District Council,11/06/2015,170251,INO440997,5,1524.91,Staffline Group,CR416827,Recycling,Hired Staff,100
http://statistics.data.gov.uk/id/local-authority/12UE,Huntingdonshire District Council,18/06/2015,170260,INO442202,5,1762.1,Staffline Group,CR416827,Recycling,Hired Staff,100
http://statistics.data.gov.uk/id/local-authority/12UE,Huntingdonshire District Council,11/06/2015,170444,3068265,5,1260.54,Venn Group Recruitment,CR415403,Revenue Services Mus,Hired Staff,100
http://statistics.data.gov.uk/id/local-authority/12UE,Huntingdonshire District Council,18/06/2015,170864,3070643,5,1226.7,Venn Group Recruitment,CR415403,Revenue Services Mus,Hired Staff,100
http://statistics.data.gov.uk/id/local-authority/12UE,Huntingdonshire District Council,25/06/2015,171050,3072965,5,1195.57,Venn Group Recruitment,CR415403,Revenue Services Mus,Hired Staff,100
http://statistics.data.gov.uk/id/local-authority/12UE,Huntingdonshire District Council,04/06/2015,169522,IN0439110,5,751.2,Staffline Group,CR416827,Street Cleaning,Hired Staff,100
http://statistics.data.gov.uk/id/local-authority/12UE,Huntingdonshire District Council,04/06/2015,169526,IN0439111,5,320.23,Staffline Group,CR416827,Street Cleaning,Hired Staff,100
http://statistics.data.gov.uk/id/local-authority/12UE,Huntingdonshire District Council,25/06/2015,170594,IN0443430,5,919.63,Staffline Group,CR416827,Street Cleaning,Hired Staff,100
http://statistics.data.gov.uk/id/local-authority/12UE,Huntingdonshire District Council,25/06/2015,170595,IN0443431,5,545.86,Staffline Group,CR416827,Street Cleaning,Hired Staff,100
http://statistics.data.gov.uk/id/local-authority/12UE,Huntingdonshire District Council,11/06/2015,170254,INO441001,5,909.74,Staffline Group,CR416827,Street Cleaning,Hired Staff,100
http://statistics.data.gov.uk/id/local-authority/12UE,Huntingdonshire District Council,11/06/2015,170257,INO441002,5,967.98,Staffline Group,CR416827,Street Cleaning,Hired Staff,100
http://statistics.data.gov.uk/id/local-authority/12UE,Huntingdonshire District Council,18/06/2015,170262,INO442205,5,1171.73,Staffline Group,CR416827,Street Cleaning,Hired Staff,100
http://statistics.data.gov.uk/id/local-authority/12UE,Huntingdonshire District Council,18/06/2015,170261,INO442206,5,647.75,Staffline Group,CR416827,Street Cleaning,Hired Staff,100
http://statistics.data.gov.uk/id/local-authority/12UE,Huntingdonshire District Council,04/06/2015,170078,923469-053A,5,631.3,Virgin Media Business/Cpsn,CR455148,C C T V,I T Line Rental,248
http://statistics.data.gov.uk/id/local-authority/12UE,Huntingdonshire District Council,04/06/2015,170079,923469-054A,5,631.3,Virgin Media Business/Cpsn,CR455148,C C T V,I T Line Rental,248
http://statistics.data.gov.uk/id/local-authority/12UE,Huntingdonshire District Council,25/06/2015,171434,923469-055A,5,631.3,Virgin Media Business/Cpsn,CR455148,C C T V,I T Line Rental,248
http://statistics.data.gov.uk/id/local-authority/12UE,Huntingdonshire District Council,04/06/2015,169467,7.42878E+11,5,975.67,Virgin Media Business,CR033120,Helpdesk,I T Line Rental,248
http://statistics.data.gov.uk/id/local-authority/12UE,Huntingdonshire District Council,04/06/2015,170078,923469-053A,5,5676.5,Virgin Media Business/Cpsn,CR455148,Helpdesk,I T Line Rental,248
http://statistics.data.gov.uk/id/local-authority/12UE,Huntingdonshire District Council,04/06/2015,170079,923469-054A,5,5676.5,Virgin Media Business/Cpsn,CR455148,Helpdesk,I T Line Rental,248
http://statistics.data.gov.uk/id/local-authority/12UE,Huntingdonshire District Council,25/06/2015,171434,923469-055A,5,6276.5,Virgin Media Business/Cpsn,CR455148,Helpdesk,I T Line Rental,248
http://statistics.data.gov.uk/id/local-authority/12UE,Huntingdonshire District Council,04/06/2015,169467,7.42878E+11,5,6.9,Virgin Media Business,CR033120,Member Allowances & Support,I T Line Rental,248
http://statistics.data.gov.uk/id/local-authority/12UE,Huntingdonshire District Council,04/06/2015,169467,7.42878E+11,5,9.6,Virgin Media Business,CR033120,One Leisure St Ives,I T Line Rental,248
http://statistics.data.gov.uk/id/local-authority/12UE,Huntingdonshire District Council,25/06/2015,170822,24,5,339,Huntingdon Gymnastics Club,CR478042,Leisure Development,Instructors/Tutors,720
http://statistics.data.gov.uk/id/local-authority/12UE,Huntingdonshire District Council,11/06/2015,581822,1,5,252,Ramsey Golf Club,CR109702,Leisure Development,Instructors/Tutors,720
http://statistics.data.gov.uk/id/local-authority/12UE,Huntingdonshire District Council,30/06/2015,171669,514,5,600,Melanie Best,CR482582,Chief Executive & Comt,Legal Fees,729
http://statistics.data.gov.uk/id/local-authority/12UE,Huntingdonshire District Council,04/06/2015,168782,90163423,5,288.24,Freeth Cartwright Llp,CR480787,Estates Properties Capital,Legal Fees,729
http://statistics.data.gov.uk/id/local-authority/12UE,Huntingdonshire District Council,25/06/2015,170485,90166411,5,452.28,Freeth Cartwright Llp,CR480787,Estates Properties Capital,Legal Fees,729
http://statistics.data.gov.uk/id/local-authority/12UE,Huntingdonshire District Council,11/06/2015,582310,40142057,6,2412.43,Local Government Association,CR411419,Land Charges,Legal Fees,729
http://statistics.data.gov.uk/id/local-authority/12UE,Huntingdonshire District Council,25/06/2015,170478,T25152,5,878.4,Mogo Uk,CR410378,Licences,Licence Plates,564
http://statistics.data.gov.uk/id/local-authority/12UE,Huntingdonshire District Council,25/06/2015,170478,T25152,5,292.8,Mogo Uk,CR410378,Licences,Licence Plates,564
http://statistics.data.gov.uk/id/local-authority/12UE,Huntingdonshire District Council,04/06/2015,169505,42015,5,1746.95,T C Harrison Ford,CR405072,Licences,Licence Plates,564
http://statistics.data.gov.uk/id/local-authority/12UE,Huntingdonshire District Council,04/06/2015,169506,122049,5,1889.4,T C Harrison Ford,CR405072,Licences,Licence Plates,564
http://statistics.data.gov.uk/id/local-authority/12UE,Huntingdonshire District Council,25/06/2015,170272,SIV059112,5,297.54,Les Mills Uk,CR025826,One Leisure St Ives,Licences,730
http://statistics.data.gov.uk/id/local-authority/12UE,Huntingdonshire District Council,04/06/2015,169878,18497,5,35000,Stonham Home Group,CR455893,Accommodation For Homeless,Management Charge,733
http://statistics.data.gov.uk/id/local-authority/12UE,Huntingdonshire District Council,04/06/2015,169880,208128,5,1133.83,South Cambridgeshire District Council,CR405127,Choice Based Lettings (Ex Chr),Management Charge,733
http://statistics.data.gov.uk/id/local-authority/12UE,Huntingdonshire District Council,25/06/2015,582824,OP/I096217,5,3898.5,Total Hygiene Ltd,CR083280,Improvement Grants,Mandatory Grants,801
http://statistics.data.gov.uk/id/local-authority/12UE,Huntingdonshire District Council,25/06/2015,170556,153768,5,292.84,Arthur Ibbett Ltd,CR000430,Countryside,Materials,550
http://statistics.data.gov.uk/id/local-authority/12UE,Huntingdonshire District Council,04/06/2015,170291,129704,5,670.31,Huntingdon Timber Supplies,CR482513,Countryside,Materials,550
http://statistics.data.gov.uk/id/local-authority/12UE,Huntingdonshire District Council,04/06/2015,170290,130781,5,856.53,Huntingdon Timber Supplies,CR482513,Countryside,Materials,550
http://statistics.data.gov.uk/id/local-authority/12UE,Huntingdonshire District Council,11/06/2015,170193,131690,5,569.45,Huntingdon Timber Supplies,CR482513,Countryside,Materials,550
http://statistics.data.gov.uk/id/local-authority/12UE,Huntingdonshire District Council,04/06/2015,169838,782988,5,290.59,Mick George,CR455837,Countryside,Materials,550
http://statistics.data.gov.uk/id/local-authority/12UE,Huntingdonshire District Council,11/06/2015,170581,783112,5,301.16,Mick George,CR455837,Countryside,Materials,550
http://statistics.data.gov.uk/id/local-authority/12UE,Huntingdonshire District Council,04/06/2015,169371,3503568,1,31.2,Espo,CR006566,One Leisure Huntingdon,Materials,550
http://statistics.data.gov.uk/id/local-authority/12UE,Huntingdonshire District Council,11/06/2015,168234,2101975261,5,113.26,Booker Cash And Carry,CR027611,One Leisure St Ives,Materials,550
http://statistics.data.gov.uk/id/local-authority/12UE,Huntingdonshire District Council,04/06/2015,169763,2102003121,5,13.16,Booker Cash And Carry,CR027611,One Leisure St Ives,Materials,550
http://statistics.data.gov.uk/id/local-authority/12UE,Huntingdonshire District Council,11/06/2015,170146,2102021122,5,88.6,Booker Cash And Carry,CR027611,One Leisure St Ives,Materials,550
http://statistics.data.gov.uk/id/local-authority/12UE,Huntingdonshire District Council,11/06/2015,170143,2102021506,5,107.96,Booker Cash And Carry,CR027611,One Leisure St Ives,Materials,550
http://statistics.data.gov.uk/id/local-authority/12UE,Huntingdonshire District Council,25/06/2015,170297,2102032087,5,87.14,Booker Cash And Carry,CR027611,One Leisure St Ives,Materials,550
http://statistics.data.gov.uk/id/local-authority/12UE,Huntingdonshire District Council,25/06/2015,170168,S1385045,5,6.3,Rollover Limited,CR482621,One Leisure St Ives,Materials,550
http://statistics.data.gov.uk/id/local-authority/12UE,Huntingdonshire District Council,11/06/2015,169382,16130,5,600,Scenic Projects Ltd,CR422230,One Leisure St Ives,Materials,550
http://statistics.data.gov.uk/id/local-authority/12UE,Huntingdonshire District Council,11/06/2015,170067,338133,5,48.39,South Lincs Food Service,CR033415,One Leisure St Ives,Materials,550
http://statistics.data.gov.uk/id/local-authority/12UE,Huntingdonshire District Council,18/06/2015,169816,2031,5,1176,Bellmans Buffet Service,CR032961,Countryside,Materials For Resale,570
http://statistics.data.gov.uk/id/local-authority/12UE,Huntingdonshire District Council,11/06/2015,168997,91947868,5,1056.85,Speedo International Limited,CR41427,One Leisure Huntingdon,Materials For Resale,570
http://statistics.data.gov.uk/id/local-authority/12UE,Huntingdonshire District Council,18/06/2015,169766,91961013,5,683.67,Speedo International Limited,CR41427,One Leisure Huntingdon,Materials For Resale,570
http://statistics.data.gov.uk/id/local-authority/12UE,Huntingdonshire District Council,04/06/2015,167860,91936938,5,516.26,Speedo International Limited,CR41427,One Leisure Ramsey,Materials For Resale,570
http://statistics.data.gov.uk/id/local-authority/12UE,Huntingdonshire District Council,11/06/2015,169776,76262488,5,12,Orange Airtime,CR455799,Animal Welfare,Mobile Telephones & Radios,241
http://statistics.data.gov.uk/id/local-authority/12UE,Huntingdonshire District Council,11/06/2015,169776,76262488,5,19.2,Orange Airtime,CR455799,Business & Enterprise Support,Mobile Telephones & Radios,241
http://statistics.data.gov.uk/id/local-authority/12UE,Huntingdonshire District Council,11/06/2015,169776,76262488,5,14.4,Orange Airtime,CR455799,Business Analysis,Mobile Telephones & Radios,241
http://statistics.data.gov.uk/id/local-authority/12UE,Huntingdonshire District Council,11/06/2015,169776,76262488,5,33.59,Orange Airtime,CR455799,C C T V,Mobile Telephones & Radios,241
http://statistics.data.gov.uk/id/local-authority/12UE,Huntingdonshire District Council,11/06/2015,169776,76262488,5,12,Orange Airtime,CR455799,Call Centre,Mobile Telephones & Radios,241
http://statistics.data.gov.uk/id/local-authority/12UE,Huntingdonshire District Council,11/06/2015,169776,76262488,5,12,Orange Airtime,CR455799,Central Services M Us,Mobile Telephones & Radios,241
http://statistics.data.gov.uk/id/local-authority/12UE,Huntingdonshire District Council,11/06/2015,169776,76262488,5,103.2,Orange Airtime,CR455799,Chief Executive & Comt,Mobile Telephones & Radios,241
http://statistics.data.gov.uk/id/local-authority/12UE,Huntingdonshire District Council,11/06/2015,169776,76262488,5,21.6,Orange Airtime,CR455799,Community Services M Us,Mobile Telephones & Radios,241
http://statistics.data.gov.uk/id/local-authority/12UE,Huntingdonshire District Council,11/06/2015,169776,76262488,5,40.9,Orange Airtime,CR455799,Countryside,Mobile Telephones & Radios,241
http://statistics.data.gov.uk/id/local-authority/12UE,Huntingdonshire District Council,11/06/2015,169776,76262488,5,12,Orange Airtime,CR455799,Customer Service Centres,Mobile Telephones & Radios,241
http://statistics.data.gov.uk/id/local-authority/12UE,Huntingdonshire District Council,11/06/2015,169776,76262488,5,4.9,Orange Airtime,CR455799,Document Centre,Mobile Telephones & Radios,241
http://statistics.data.gov.uk/id/local-authority/12UE,Huntingdonshire District Council,11/06/2015,169776,76262488,5,12,Orange Airtime,CR455799,Electoral Registration,Mobile Telephones & Radios,241
http://statistics.data.gov.uk/id/local-authority/12UE,Huntingdonshire District Council,11/06/2015,169776,76262488,5,151.2,Orange Airtime,CR455799,Environmental Health M Us,Mobile Telephones & Radios,241
http://statistics.data.gov.uk/id/local-authority/12UE,Huntingdonshire District Council,11/06/2015,169776,76262488,5,82.08,Orange Airtime,CR455799,Environmental Management,Mobile Telephones & Radios,241
http://statistics.data.gov.uk/id/local-authority/12UE,Huntingdonshire District Council,11/06/2015,169776,76262488,5,7.3,Orange Airtime,CR455799,Financial Services Mus,Mobile Telephones & Radios,241
http://statistics.data.gov.uk/id/local-authority/12UE,Huntingdonshire District Council,11/06/2015,169776,76262488,5,48,Orange Airtime,CR455799,Helpdesk,Mobile Telephones & Radios,241
http://statistics.data.gov.uk/id/local-authority/12UE,Huntingdonshire District Council,11/06/2015,169776,76262488,5,19.19,Orange Airtime,CR455799,Housing  Benefits Admin,Mobile Telephones & Radios,241
http://statistics.data.gov.uk/id/local-authority/12UE,Huntingdonshire District Council,11/06/2015,169776,76262488,5,19.2,Orange Airtime,CR455799,Housing Management Units,Mobile Telephones & Radios,241
http://statistics.data.gov.uk/id/local-authority/12UE,Huntingdonshire District Council,11/06/2015,169776,76262488,5,4.8,Orange Airtime,CR455799,Human Resources,Mobile Telephones & Radios,241
http://statistics.data.gov.uk/id/local-authority/12UE,Huntingdonshire District Council,11/06/2015,169776,76262488,5,9.6,Orange Airtime,CR455799,Information Manager,Mobile Telephones & Radios,241
http://statistics.data.gov.uk/id/local-authority/12UE,Huntingdonshire District Council,11/06/2015,169776,76262488,5,2.4,Orange Airtime,CR455799,Leisure Centres Overall,Mobile Telephones & Radios,241
http://statistics.data.gov.uk/id/local-authority/12UE,Huntingdonshire District Council,11/06/2015,169776,76262488,5,36,Orange Airtime,CR455799,Leisure Development,Mobile Telephones & Radios,241
http://statistics.data.gov.uk/id/local-authority/12UE,Huntingdonshire District Council,11/06/2015,169776,76262488,5,7.2,Orange Airtime,CR455799,Licences,Mobile Telephones & Radios,241
http://statistics.data.gov.uk/id/local-authority/12UE,Huntingdonshire District Council,11/06/2015,169776,76262488,5,31.36,Orange Airtime,CR455799,Member Allowances & Support,Mobile Telephones & Radios,241
http://statistics.data.gov.uk/id/local-authority/12UE,Huntingdonshire District Council,11/06/2015,169776,76262488,5,14.4,Orange Airtime,CR455799,Off Street Parking,Mobile Telephones & Radios,241
http://statistics.data.gov.uk/id/local-authority/12UE,Huntingdonshire District Council,11/06/2015,169776,76262488,5,9.6,Orange Airtime,CR455799,One Leisure Huntingdon,Mobile Telephones & Radios,241
http://statistics.data.gov.uk/id/local-authority/12UE,Huntingdonshire District Council,11/06/2015,169776,76262488,5,18.1,Orange Airtime,CR455799,One Leisure St Ives,Mobile Telephones & Radios,241
http://statistics.data.gov.uk/id/local-authority/12UE,Huntingdonshire District Council,11/06/2015,169776,76262488,5,9.6,Orange Airtime,CR455799,One Leisure St Neots,Mobile Telephones & Radios,241
http://statistics.data.gov.uk/id/local-authority/12UE,Huntingdonshire District Council,11/06/2015,169776,76262488,5,170.86,Orange Airtime,CR455799,Operations Mgt Units,Mobile Telephones & Radios,241
http://statistics.data.gov.uk/id/local-authority/12UE,Huntingdonshire District Council,11/06/2015,169776,76262488,5,7.2,Orange Airtime,CR455799,Pathfinder House Site,Mobile Telephones & Radios,241
http://statistics.data.gov.uk/id/local-authority/12UE,Huntingdonshire District Council,11/06/2015,169776,76262488,5,78,Orange Airtime,CR455799,Planning M U'S,Mobile Telephones & Radios,241
http://statistics.data.gov.uk/id/local-authority/12UE,Huntingdonshire District Council,11/06/2015,169776,76262488,5,9.6,Orange Airtime,CR455799,Property Development And Mgt,Mobile Telephones & Radios,241
http://statistics.data.gov.uk/id/local-authority/12UE,Huntingdonshire District Council,11/06/2015,169776,76262488,5,9.6,Orange Airtime,CR455799,Ramsey Neighbourhood,Mobile Telephones & Radios,241
http://statistics.data.gov.uk/id/local-authority/12UE,Huntingdonshire District Council,11/06/2015,169776,76262488,5,76.8,Orange Airtime,CR455799,Revenue Services Mus,Mobile Telephones & Radios,241
http://statistics.data.gov.uk/id/local-authority/12UE,Huntingdonshire District Council,11/06/2015,169776,76262488,5,2.4,Orange Airtime,CR455799,Street Cleaning,Mobile Telephones & Radios,241
http://statistics.data.gov.uk/id/local-authority/12UE,Huntingdonshire District Council,18/06/2015,171005,8658,5,259.62,Playfords Ltd,CR479055,Helpdesk,Network Hardware,205
http://statistics.data.gov.uk/id/local-authority/12UE,Huntingdonshire District Council,11/06/2015,169473,2372129,5,363.29,Insight Direct Uk Ltd,CR000242,Helpdesk,Other I T Hardware,203
http://statistics.data.gov.uk/id/local-authority/12UE,Huntingdonshire District Council,04/06/2015,169576,1118305066,5,705.42,Konica Minolta,CR478866,One Leisure St Neots,Other Office Equipment,209
http://statistics.data.gov.uk/id/local-authority/12UE,Huntingdonshire District Council,04/06/2015,169638,4781258,5,110.4,Antalis Ltd,CR479468,Document Centre,Paper,562
http://statistics.data.gov.uk/id/local-authority/12UE,Huntingdonshire District Council,04/06/2015,169638,4781258,5,104.69,Antalis Ltd,CR479468,Document Centre,Paper,562
http://statistics.data.gov.uk/id/local-authority/12UE,Huntingdonshire District Council,04/06/2015,169638,4781258,5,65.47,Antalis Ltd,CR479468,Document Centre,Paper,562
http://statistics.data.gov.uk/id/local-authority/12UE,Huntingdonshire District Council,04/06/2015,169638,4781258,5,60.41,Antalis Ltd,CR479468,Document Centre,Paper,562
http://statistics.data.gov.uk/id/local-authority/12UE,Huntingdonshire District Council,04/06/2015,169638,4781258,5,61.8,Antalis Ltd,CR479468,Document Centre,Paper,562
http://statistics.data.gov.uk/id/local-authority/12UE,Huntingdonshire District Council,11/06/2015,170139,4809145,5,55.2,Antalis Ltd,CR479468,Document Centre,Paper,562
http://statistics.data.gov.uk/id/local-authority/12UE,Huntingdonshire District Council,11/06/2015,170139,4809145,5,530.4,Antalis Ltd,CR479468,Document Centre,Paper,562
http://statistics.data.gov.uk/id/local-authority/12UE,Huntingdonshire District Council,11/06/2015,170139,4809145,5,65.47,Antalis Ltd,CR479468,Document Centre,Paper,562
http://statistics.data.gov.uk/id/local-authority/12UE,Huntingdonshire District Council,18/06/2015,170135,4817761,5,265.2,Antalis Ltd,CR479468,Document Centre,Paper,562
http://statistics.data.gov.uk/id/local-authority/12UE,Huntingdonshire District Council,25/06/2015,171059,4849774,5,98.93,Antalis Ltd,CR479468,Document Centre,Paper,562
http://statistics.data.gov.uk/id/local-authority/12UE,Huntingdonshire District Council,25/06/2015,171059,4849774,5,88.2,Antalis Ltd,CR479468,Document Centre,Paper,562
http://statistics.data.gov.uk/id/local-authority/12UE,Huntingdonshire District Council,25/06/2015,171059,4849774,5,55.8,Antalis Ltd,CR479468,Document Centre,Paper,562
http://statistics.data.gov.uk/id/local-authority/12UE,Huntingdonshire District Council,25/06/2015,171059,4849774,5,65.47,Antalis Ltd,CR479468,Document Centre,Paper,562
http://statistics.data.gov.uk/id/local-authority/12UE,Huntingdonshire District Council,25/06/2015,171059,4849774,5,60.41,Antalis Ltd,CR479468,Document Centre,Paper,562
http://statistics.data.gov.uk/id/local-authority/12UE,Huntingdonshire District Council,25/06/2015,171059,4849774,5,61.8,Antalis Ltd,CR479468,Document Centre,Paper,562
http://statistics.data.gov.uk/id/local-authority/12UE,Huntingdonshire District Council,25/06/2015,171059,4849774,5,63.6,Antalis Ltd,CR479468,Document Centre,Paper,562
http://statistics.data.gov.uk/id/local-authority/12UE,Huntingdonshire District Council,25/06/2015,171059,4849774,5,96.48,Antalis Ltd,CR479468,Document Centre,Paper,562
http://statistics.data.gov.uk/id/local-authority/12UE,Huntingdonshire District Council,11/06/2015,170461,261359,5,1432.72,Plot It,CR455069,Document Centre,Paper,562
http://statistics.data.gov.uk/id/local-authority/12UE,Huntingdonshire District Council,25/06/2015,170546,10073898,5,344.16,Burnt Tree Group,CR480897,Operations Mgt Units,Parliamentary  Elections,CE88
http://statistics.data.gov.uk/id/local-authority/12UE,Huntingdonshire District Council,11/06/2015,170441,16009092,5,24573.37,Cambridgeshire County Council,CR006678,Pensions,Pension Early Retirements,151
http://statistics.data.gov.uk/id/local-authority/12UE,Huntingdonshire District Council,25/06/2015,171379,10518458,5,44.95,Euramka Promotions Ltd,CR001864,Grounds Maintenance (Combined),Petrol,614
http://statistics.data.gov.uk/id/local-authority/12UE,Huntingdonshire District Council,25/06/2015,171379,10518458,5,27.13,Euramka Promotions Ltd,CR001864,Grounds Maintenance (Combined),Petrol,614
http://statistics.data.gov.uk/id/local-authority/12UE,Huntingdonshire District Council,11/06/2015,169482,78154,5,542.59,Jsa Leisure Ltd,CR40187,One Leisure Huntingdon,Plant & Equipment Maintenance,380
http://statistics.data.gov.uk/id/local-authority/12UE,Huntingdonshire District Council,04/06/2015,170234,510,5,424.8,Pool Maintenance Ltd,CR422505,One Leisure Huntingdon,Plant & Equipment Maintenance,380
http://statistics.data.gov.uk/id/local-authority/12UE,Huntingdonshire District Council,25/06/2015,170534,546,5,960,Pool Maintenance Ltd,CR422505,One Leisure Huntingdon,Plant & Equipment Maintenance,380
http://statistics.data.gov.uk/id/local-authority/12UE,Huntingdonshire District Council,25/06/2015,170534,546,5,960,Pool Maintenance Ltd,CR422505,One Leisure Ramsey,Plant & Equipment Maintenance,380
http://statistics.data.gov.uk/id/local-authority/12UE,Huntingdonshire District Council,25/06/2015,170534,546,5,960,Pool Maintenance Ltd,CR422505,One Leisure Sawtry,Plant & Equipment Maintenance,380
http://statistics.data.gov.uk/id/local-authority/12UE,Huntingdonshire District Council,04/06/2015,169626,15500233,5,4341.6,Ener-G Combined Power Ltd,CR422879,One Leisure St Ives,Plant & Equipment Maintenance,380
http://statistics.data.gov.uk/id/local-authority/12UE,Huntingdonshire District Council,11/06/2015,169373,3066145,5,464.4,First In Service Ltd,CR422285,One Leisure St Ives,Plant & Equipment Maintenance,380
http://statistics.data.gov.uk/id/local-authority/12UE,Huntingdonshire District Council,11/06/2015,170269,INV001435,5,474.36,Lynx Bowling Services,CR455532,One Leisure St Ives,Plant & Equipment Maintenance,380
http://statistics.data.gov.uk/id/local-authority/12UE,Huntingdonshire District Council,25/06/2015,170534,546,5,1920,Pool Maintenance Ltd,CR422505,One Leisure St Ives,Plant & Equipment Maintenance,380
http://statistics.data.gov.uk/id/local-authority/12UE,Huntingdonshire District Council,25/06/2015,170534,546,5,1920,Pool Maintenance Ltd,CR422505,One Leisure St Neots,Plant & Equipment Maintenance,380
http://statistics.data.gov.uk/id/local-authority/12UE,Huntingdonshire District Council,25/06/2015,170072,29017,5,1068,P A Collacott & Company,CR482300,Pathfinder House Site,Plant & Equipment Maintenance,380
http://statistics.data.gov.uk/id/local-authority/12UE,Huntingdonshire District Council,11/06/2015,169823,125280,5,996,Giffords,CR415602,Parks & Open Spaces,Playground Equipment,360
http://statistics.data.gov.uk/id/local-authority/12UE,Huntingdonshire District Council,04/06/2015,169466,1974,5,1470,Rynat Limited,CR454003,Parks & Open Spaces,Playground Equipment,360
http://statistics.data.gov.uk/id/local-authority/12UE,Huntingdonshire District Council,11/06/2015,170461,261359,5,7.19,Plot It,CR455069,Document Centre,Postage,231
http://statistics.data.gov.uk/id/local-authority/12UE,Huntingdonshire District Council,11/06/2015,169618,9049801997,5,941.05,Royal Mail,CR027083,Document Centre,Postage,231
http://statistics.data.gov.uk/id/local-authority/12UE,Huntingdonshire District Council,18/06/2015,170199,9049849064,5,3.24,Royal Mail,CR027083,Document Centre,Postage,231
http://statistics.data.gov.uk/id/local-authority/12UE,Huntingdonshire District Council,04/06/2015,169630,IN16PS15002964,5,1064.11,Whistl,CR479965,Document Centre,Postage,231
http://statistics.data.gov.uk/id/local-authority/12UE,Huntingdonshire District Council,04/06/2015,169623,IN16PS15002965,5,1078.75,Whistl,CR479965,Document Centre,Postage,231
http://statistics.data.gov.uk/id/local-authority/12UE,Huntingdonshire District Council,11/06/2015,169629,IN16PS15003093,5,940.96,Whistl,CR479965,Document Centre,Postage,231
http://statistics.data.gov.uk/id/local-authority/12UE,Huntingdonshire District Council,25/06/2015,170052,IN16PS15003292,5,993.8,Whistl,CR479965,Document Centre,Postage,231
http://statistics.data.gov.uk/id/local-authority/12UE,Huntingdonshire District Council,25/06/2015,170206,IN16PS15003446,5,1137.7,Whistl,CR479965,Document Centre,Postage,231
http://statistics.data.gov.uk/id/local-authority/12UE,Huntingdonshire District Council,04/06/2015,169622,9049763379,5,7913.14,Royal Mail,CR027083,Elections,Postage,231
http://statistics.data.gov.uk/id/local-authority/12UE,Huntingdonshire District Council,11/06/2015,169617,9049816691,5,5585.71,Royal Mail,CR027083,Elections,Postage,231
http://statistics.data.gov.uk/id/local-authority/12UE,Huntingdonshire District Council,18/06/2015,170199,9049849064,5,1368.05,Royal Mail,CR027083,Elections,Postage,231
http://statistics.data.gov.uk/id/local-authority/12UE,Huntingdonshire District Council,11/06/2015,169618,9049801997,5,589.75,Royal Mail,CR027083,Electoral Registration,Postage,231
http://statistics.data.gov.uk/id/local-authority/12UE,Huntingdonshire District Council,04/06/2015,169630,IN16PS15002964,5,18.29,Whistl,CR479965,Electoral Registration,Postage,231
http://statistics.data.gov.uk/id/local-authority/12UE,Huntingdonshire District Council,04/06/2015,169623,IN16PS15002965,5,127.22,Whistl,CR479965,Electoral Registration,Postage,231
http://statistics.data.gov.uk/id/local-authority/12UE,Huntingdonshire District Council,25/06/2015,170052,IN16PS15003292,5,63.82,Whistl,CR479965,Electoral Registration,Postage,231
http://statistics.data.gov.uk/id/local-authority/12UE,Huntingdonshire District Council,25/06/2015,170206,IN16PS15003446,5,195.91,Whistl,CR479965,Electoral Registration,Postage,231
http://statistics.data.gov.uk/id/local-authority/12UE,Huntingdonshire District Council,25/06/2015,170478,T25152,5,17.88,Mogo Uk,CR410378,Licences,Postage,231
http://statistics.data.gov.uk/id/local-authority/12UE,Huntingdonshire District Council,11/06/2015,169629,IN16PS15003093,5,406.46,Whistl,CR479965,One Leisure Huntingdon,Postage,231
http://statistics.data.gov.uk/id/local-authority/12UE,Huntingdonshire District Council,11/06/2015,169629,IN16PS15003093,5,249.17,Whistl,CR479965,One Leisure Ramsey,Postage,231
http://statistics.data.gov.uk/id/local-authority/12UE,Huntingdonshire District Council,11/06/2015,169629,IN16PS15003093,5,243.88,Whistl,CR479965,One Leisure Sawtry,Postage,231
http://statistics.data.gov.uk/id/local-authority/12UE,Huntingdonshire District Council,11/06/2015,169629,IN16PS15003093,5,406.46,Whistl,CR479965,One Leisure St Ives,Postage,231
http://statistics.data.gov.uk/id/local-authority/12UE,Huntingdonshire District Council,11/06/2015,169629,IN16PS15003093,5,406.46,Whistl,CR479965,One Leisure St Neots,Postage,231
http://statistics.data.gov.uk/id/local-authority/12UE,Huntingdonshire District Council,04/06/2015,169630,IN16PS15002964,5,2174.58,Whistl,CR479965,Revenue Services Mus,Postage,231
http://statistics.data.gov.uk/id/local-authority/12UE,Huntingdonshire District Council,04/06/2015,169623,IN16PS15002965,5,955.61,Whistl,CR479965,Revenue Services Mus,Postage,231
http://statistics.data.gov.uk/id/local-authority/12UE,Huntingdonshire District Council,11/06/2015,169629,IN16PS15003093,5,518.65,Whistl,CR479965,Revenue Services Mus,Postage,231
http://statistics.data.gov.uk/id/local-authority/12UE,Huntingdonshire District Council,25/06/2015,170052,IN16PS15003292,5,3820.36,Whistl,CR479965,Revenue Services Mus,Postage,231
http://statistics.data.gov.uk/id/local-authority/12UE,Huntingdonshire District Council,25/06/2015,170206,IN16PS15003446,5,1399.04,Whistl,CR479965,Revenue Services Mus,Postage,231
http://statistics.data.gov.uk/id/local-authority/12UE,Huntingdonshire District Council,11/06/2015,169417,965075077,5,243.09,Office Depot Uk Ltd,CR455229,Document Centre,Printers,208
http://statistics.data.gov.uk/id/local-authority/12UE,Huntingdonshire District Council,25/06/2015,171443,DM856205,5,359.98,Dotmailer,CR455325,Leisure Centres Overall,Printing (External),220
http://statistics.data.gov.uk/id/local-authority/12UE,Huntingdonshire District Council,25/06/2015,171195,R HUDSON,5,90,Phil The Van,CR454014,One Leisure Huntingdon,Printing (External),220
http://statistics.data.gov.uk/id/local-authority/12UE,Huntingdonshire District Council,25/06/2015,171195,R HUDSON,5,90,Phil The Van,CR454014,One Leisure Ramsey,Printing (External),220
http://statistics.data.gov.uk/id/local-authority/12UE,Huntingdonshire District Council,25/06/2015,171195,R HUDSON,5,90,Phil The Van,CR454014,One Leisure Sawtry,Printing (External),220
http://statistics.data.gov.uk/id/local-authority/12UE,Huntingdonshire District Council,25/06/2015,171195,R HUDSON,5,90,Phil The Van,CR454014,One Leisure St Ives,Printing (External),220
http://statistics.data.gov.uk/id/local-authority/12UE,Huntingdonshire District Council,25/06/2015,171195,R HUDSON,5,90,Phil The Van,CR454014,One Leisure St Neots,Printing (External),220
http://statistics.data.gov.uk/id/local-authority/12UE,Huntingdonshire District Council,04/06/2015,169753,I2187306,5,258.96,Northgate Hr Limited,CR416464,Payroll,Printing (External),220
http://statistics.data.gov.uk/id/local-authority/12UE,Huntingdonshire District Council,25/06/2015,170306,9161726,6,10440,East Of England Lga,CR422620,Chief Executive & Comt,Professional Subscriptions,755
http://statistics.data.gov.uk/id/local-authority/12UE,Huntingdonshire District Council,04/06/2015,169371,3503568,1,45.36,Espo,CR006566,One Leisure Huntingdon,Protective Clothing & Uniforms,163
http://statistics.data.gov.uk/id/local-authority/12UE,Huntingdonshire District Council,25/06/2015,170119,55154114,5,259.2,Archant Herts & Cambs,CR415764,One Leisure St Neots,Recruitment - Advertising,120
http://statistics.data.gov.uk/id/local-authority/12UE,Huntingdonshire District Council,18/06/2015,170932,PS10171599,5,34448.19,Ameycespa (East) Ltd,CR127636,Recycling,Recycling Collections,747
http://statistics.data.gov.uk/id/local-authority/12UE,Huntingdonshire District Council,25/06/2015,170933,PS10174137,5,31291.68,Ameycespa (East) Ltd,CR127636,Recycling,Recycling Collections,747
http://statistics.data.gov.uk/id/local-authority/12UE,Huntingdonshire District Council,25/06/2015,170576,E0173,5,7192.97,Gelpack Excelsior Limited,CR002966,Domestic Refuse,Refuse Sacks,552
http://statistics.data.gov.uk/id/local-authority/12UE,Huntingdonshire District Council,25/06/2015,170577,E0173,5,799.22,Gelpack Excelsior Limited,CR002966,Domestic Refuse,Refuse Sacks,552
http://statistics.data.gov.uk/id/local-authority/12UE,Huntingdonshire District Council,25/06/2015,170576,E0173,5,3806.4,Gelpack Excelsior Limited,CR002966,Recycling,Refuse Sacks,552
http://statistics.data.gov.uk/id/local-authority/12UE,Huntingdonshire District Council,04/06/2015,582097,PO26999,5,1155,Information Commissioner,CR404972,Member Allowances & Support,Registration Fee,748
http://statistics.data.gov.uk/id/local-authority/12UE,Huntingdonshire District Council,11/06/2015,170619,22.05.15,5,510,Move It Quickly,CR479000,Homelessness Management,Removal/Storage,750
http://statistics.data.gov.uk/id/local-authority/12UE,Huntingdonshire District Council,25/06/2015,171363,22.06.15,5,316.8,Move It Quickly,CR479000,Homelessness Management,Removal/Storage,750
http://statistics.data.gov.uk/id/local-authority/12UE,Huntingdonshire District Council,25/06/2015,171370,REDACTED PERSONAL DATA,5,829.2,Move It Quickly,CR479000,Homelessness Management,Removal/Storage,750
http://statistics.data.gov.uk/id/local-authority/12UE,Huntingdonshire District Council,25/06/2015,171332,4215,5,1814.65,Oastlodge Ltd,CR479114,Off Street Parking,Rent,410
http://statistics.data.gov.uk/id/local-authority/12UE,Huntingdonshire District Council,04/06/2015,169121,S-33315  48789,5,660.24,G4s Secure Solutions (Uk) Ltd,CR454030,One Leisure Ramsey,Security,450
http://statistics.data.gov.uk/id/local-authority/12UE,Huntingdonshire District Council,25/06/2015,170673,90025584,5,730.8,G4s Secure Solutions (Uk) Ltd,CR454030,One Leisure Sawtry,Security,450
http://statistics.data.gov.uk/id/local-authority/12UE,Huntingdonshire District Council,25/06/2015,171283,5187390,5,281.11,Chubb Fire And Security Ltd,CR478924,One Leisure St Neots,Security,450
http://statistics.data.gov.uk/id/local-authority/12UE,Huntingdonshire District Council,25/06/2015,170229,5240485,5,272.3,Chubb Fire And Security Ltd,CR478924,One Leisure St Neots,Security,450
http://statistics.data.gov.uk/id/local-authority/12UE,Huntingdonshire District Council,25/06/2015,171244,90028290,5,730.8,G4s Secure Solutions (Uk) Ltd,CR454030,One Leisure St Neots,Security,450
http://statistics.data.gov.uk/id/local-authority/12UE,Huntingdonshire District Council,11/06/2015,582321,302,1,3926.28,St Neots Town Council,CR002483,Customer Service Centres,Service Charges,412
http://statistics.data.gov.uk/id/local-authority/12UE,Huntingdonshire District Council,24/06/2015,171205,REDACTED PERSONAL DATA,5,3132.78,REDACTED PERSONAL DATA,CR422013,Corporate Committees,Settlements,155
http://statistics.data.gov.uk/id/local-authority/12UE,Huntingdonshire District Council,24/06/2015,171218,REDACTED PERSONAL DATA,5,2431.61,REDACTED PERSONAL DATA,CR422013,Countryside,Settlements,155
http://statistics.data.gov.uk/id/local-authority/12UE,Huntingdonshire District Council,24/06/2015,171220,REDACTED PERSONAL DATA,5,3311.77,REDACTED PERSONAL DATA,CR422013,Document Centre,Settlements,155
http://statistics.data.gov.uk/id/local-authority/12UE,Huntingdonshire District Council,24/06/2015,171222,REDACTED PERSONAL DATA,5,5253.58,REDACTED PERSONAL DATA,CR422013,Environmental Health M Us,Settlements,155
http://statistics.data.gov.uk/id/local-authority/12UE,Huntingdonshire District Council,24/06/2015,171216,REDACTED PERSONAL DATA,5,417.79,REDACTED PERSONAL DATA,CR422013,Environmental Management,Settlements,155
http://statistics.data.gov.uk/id/local-authority/12UE,Huntingdonshire District Council,24/06/2015,171212,REDACTED PERSONAL DATA,5,5151.68,REDACTED PERSONAL DATA,CR422013,Financial Services Mus,Settlements,155
http://statistics.data.gov.uk/id/local-authority/12UE,Huntingdonshire District Council,24/06/2015,171208,REDACTED PERSONAL DATA,5,3338.97,REDACTED PERSONAL DATA,CR422013,Financial Services Mus,Settlements,155
http://statistics.data.gov.uk/id/local-authority/12UE,Huntingdonshire District Council,24/06/2015,171207,REDACTED PERSONAL DATA,5,2871.08,REDACTED PERSONAL DATA,CR422013,Financial Services Mus,Settlements,155
http://statistics.data.gov.uk/id/local-authority/12UE,Huntingdonshire District Council,24/06/2015,171214,REDACTED PERSONAL DATA,5,1596.76,REDACTED PERSONAL DATA,CR422013,Financial Services Mus,Settlements,155
http://statistics.data.gov.uk/id/local-authority/12UE,Huntingdonshire District Council,24/06/2015,171217,REDACTED PERSONAL DATA,5,2275.63,REDACTED PERSONAL DATA,CR422013,Housing Management Units,Settlements,155
http://statistics.data.gov.uk/id/local-authority/12UE,Huntingdonshire District Council,24/06/2015,171219,REDACTED PERSONAL DATA,5,1482.64,REDACTED PERSONAL DATA,CR422013,Leisure Centres Overall,Settlements,155
http://statistics.data.gov.uk/id/local-authority/12UE,Huntingdonshire District Council,24/06/2015,171213,REDACTED PERSONAL DATA,5,4279.2,REDACTED PERSONAL DATA,CR422013,Planning M U'S,Settlements,155
http://statistics.data.gov.uk/id/local-authority/12UE,Huntingdonshire District Council,24/06/2015,171209,REDACTED PERSONAL DATA,5,3168.11,REDACTED PERSONAL DATA,CR422013,Planning M U'S,Settlements,155
http://statistics.data.gov.uk/id/local-authority/12UE,Huntingdonshire District Council,04/06/2015,170088,130359813,5,188.56,Anglian Water,CR000071,Parks & Open Spaces,Sewerage,433
http://statistics.data.gov.uk/id/local-authority/12UE,Huntingdonshire District Council,04/06/2015,168957,GFL 1709HDC,5,606,G Ferrara Ltd,CR478949,Bus Shelters,Sitework,359
http://statistics.data.gov.uk/id/local-authority/12UE,Huntingdonshire District Council,25/06/2015,170054,2015/137,5,695.04,Primesight  Ltd,CR132710,Bus Shelters,Sitework,359
http://statistics.data.gov.uk/id/local-authority/12UE,Huntingdonshire District Council,25/06/2015,170076,2050,5,520.3,K & M Lighting Services Ltd,CR455166,Energy Efficiency,Sitework,359
http://statistics.data.gov.uk/id/local-authority/12UE,Huntingdonshire District Council,04/06/2015,169876,6949,5,5400,Locata Housing Services Ltd,CR478274,Choice Based Lettings (Ex Chr),Software,206
http://statistics.data.gov.uk/id/local-authority/12UE,Huntingdonshire District Council,04/06/2015,168958,832959396,5,493.13,Stm Environmentalconsultants Ltd,CR478181,Contaminated Land,Software,206
http://statistics.data.gov.uk/id/local-authority/12UE,Huntingdonshire District Council,11/06/2015,170634,MI 18257294,5,1532.16,Eclipse,CR417066,Development Team,Software,206
http://statistics.data.gov.uk/id/local-authority/12UE,Huntingdonshire District Council,18/06/2015,170186,2251,5,8441,Capax Discovery Ltd,CR480587,Helpdesk,Software,206
http://statistics.data.gov.uk/id/local-authority/12UE,Huntingdonshire District Council,25/06/2015,170194,OP/I753983,5,298.73,Phoenix Software Ltd,CR031918,Helpdesk,Software,206
http://statistics.data.gov.uk/id/local-authority/12UE,Huntingdonshire District Council,25/06/2015,170656,INV01157048,5,1080,Softcat,CR422246,Helpdesk,Software,206
http://statistics.data.gov.uk/id/local-authority/12UE,Huntingdonshire District Council,18/06/2015,170886,SIN013179,5,600,Complywise,CR480654,Human Resources,Software,206
http://statistics.data.gov.uk/id/local-authority/12UE,Huntingdonshire District Council,11/06/2015,167135,74749,5,359.54,Gladstone Mrm,CR405717,One Leisure Huntingdon,Software,206
http://statistics.data.gov.uk/id/local-authority/12UE,Huntingdonshire District Council,11/06/2015,167135,74749,5,179.79,Gladstone Mrm,CR405717,One Leisure Ramsey,Software,206
http://statistics.data.gov.uk/id/local-authority/12UE,Huntingdonshire District Council,11/06/2015,167135,74749,5,179.79,Gladstone Mrm,CR405717,One Leisure Sawtry,Software,206
http://statistics.data.gov.uk/id/local-authority/12UE,Huntingdonshire District Council,11/06/2015,167135,74749,5,359.54,Gladstone Mrm,CR405717,One Leisure St Ives,Software,206
http://statistics.data.gov.uk/id/local-authority/12UE,Huntingdonshire District Council,11/06/2015,167135,74749,5,359.54,Gladstone Mrm,CR405717,One Leisure St Neots,Software,206
http://statistics.data.gov.uk/id/local-authority/12UE,Huntingdonshire District Council,11/06/2015,169446,PH137592,5,623.52,Physical Company,CR407014,One Leisure Huntingdon,Sports Equipment,524
http://statistics.data.gov.uk/id/local-authority/12UE,Huntingdonshire District Council,25/06/2015,170832,17580,5,270,Warboys Services Ltd,CR000841,One Leisure St Neots,Sports Equipment,524
http://statistics.data.gov.uk/id/local-authority/12UE,Huntingdonshire District Council,11/06/2015,169417,965075077,5,5.74,Office Depot Uk Ltd,CR455229,Financial Services Mus,Stationery,225
http://statistics.data.gov.uk/id/local-authority/12UE,Huntingdonshire District Council,11/06/2015,169417,965075077,5,3.76,Office Depot Uk Ltd,CR455229,Financial Services Mus,Stationery,225
http://statistics.data.gov.uk/id/local-authority/12UE,Huntingdonshire District Council,11/06/2015,169417,965075077,5,1.34,Office Depot Uk Ltd,CR455229,Financial Services Mus,Stationery,225
http://statistics.data.gov.uk/id/local-authority/12UE,Huntingdonshire District Council,04/06/2015,169371,3503568,1,48.55,Espo,CR006566,One Leisure Huntingdon,Stationery,225
http://statistics.data.gov.uk/id/local-authority/12UE,Huntingdonshire District Council,25/06/2015,170574,300097783,5,735,Freight Transport Association,CR003104,Operations Mgt Units,Stationery,225
http://statistics.data.gov.uk/id/local-authority/12UE,Huntingdonshire District Council,11/06/2015,582501,BC342145,5,360,North Kesteven District Council,CR477399,Building Control Other,Subcontractors,777
http://statistics.data.gov.uk/id/local-authority/12UE,Huntingdonshire District Council,04/06/2015,169013,37685,5,2935.2,Clanpress King'S Lynn Ltd,CR413516,Document Centre,Subcontractors,777
http://statistics.data.gov.uk/id/local-authority/12UE,Huntingdonshire District Council,11/06/2015,169427,302,5,395,Mr C Norbury,CR482576,Eh Drainage Holding Acs,Subcontractors,777
http://statistics.data.gov.uk/id/local-authority/12UE,Huntingdonshire District Council,04/06/2015,169467,"742,878,104,001",5,0.17,Virgin Media Business,CR033120,Customer Service Centres,Telephone Charges,240
http://statistics.data.gov.uk/id/local-authority/12UE,Huntingdonshire District Council,04/06/2015,169467,"742,878,104,001",5,1223.34,Virgin Media Business,CR033120,Helpdesk,Telephone Charges,240
http://statistics.data.gov.uk/id/local-authority/12UE,Huntingdonshire District Council,04/06/2015,169467,"742,878,104,001",5,2.71,Virgin Media Business,CR033120,One Leisure Huntingdon,Telephone Charges,240
http://statistics.data.gov.uk/id/local-authority/12UE,Huntingdonshire District Council,04/06/2015,169467,"742,878,104,001",5,0.06,Virgin Media Business,CR033120,One Leisure St Ives,Telephone Charges,240
http://statistics.data.gov.uk/id/local-authority/12UE,Huntingdonshire District Council,04/06/2015,170200,6128001559,5,750,Liberty Services,CR027041,Off Street Parking,Tickets,227
http://statistics.data.gov.uk/id/local-authority/12UE,Huntingdonshire District Council,25/06/2015,170184,300097784,5,270,Freight Transport Association,CR003104,Operations Mgt Units,Training - Operational,131
http://statistics.data.gov.uk/id/local-authority/12UE,Huntingdonshire District Council,25/06/2015,171295,180,5,708,Eevs Insight Ltd,CR422910,Energy Efficiency,Training - Other,136
http://statistics.data.gov.uk/id/local-authority/12UE,Huntingdonshire District Council,04/06/2015,169090,ICE344113,5,1110,Qa Limited,CR479791,Helpdesk,Training - Other,136
http://statistics.data.gov.uk/id/local-authority/12UE,Huntingdonshire District Council,04/06/2015,170064,INV-27125,5,1050,Capita Business Services Ltd,CR410639,Revenue Services Mus,Training - Other,136
http://statistics.data.gov.uk/id/local-authority/12UE,Huntingdonshire District Council,04/06/2015,170062,3107600,5,5130,Cipfa Business Limited,CR480088,Revenue Services Mus,Training - Other,136
http://statistics.data.gov.uk/id/local-authority/12UE,Huntingdonshire District Council,04/06/2015,168913,A117980,5,456,Irrv Services Limited,CR008937,Revenue Services Mus,Training - Other,136
http://statistics.data.gov.uk/id/local-authority/12UE,Huntingdonshire District Council,04/06/2015,170121,ICE340255,5,588,Qa Limited,CR479791,Revenue Services Mus,Training - Other,136
http://statistics.data.gov.uk/id/local-authority/12UE,Huntingdonshire District Council,18/06/2015,581934,16449,5,732,Aea Bookings,CR416382,Electoral Registration,Training - Professional,130
http://statistics.data.gov.uk/id/local-authority/12UE,Huntingdonshire District Council,18/06/2015,581935,16497,5,358.8,Aea Bookings,CR416382,Electoral Registration,Training - Professional,130
http://statistics.data.gov.uk/id/local-authority/12UE,Huntingdonshire District Council,11/06/2015,170644,74939,5,742.39,Bandvulc Truck Tyres,CR406810,Domestic Refuse,Tyres,630
http://statistics.data.gov.uk/id/local-authority/12UE,Huntingdonshire District Council,11/06/2015,170644,74939,5,2279.87,Bandvulc Truck Tyres,CR406810,Recycling,Tyres,630
http://statistics.data.gov.uk/id/local-authority/12UE,Huntingdonshire District Council,11/06/2015,170644,74939,5,32.98,Bandvulc Truck Tyres,CR406810,Street Cleaning,Tyres,630
http://statistics.data.gov.uk/id/local-authority/12UE,Huntingdonshire District Council,11/06/2015,169541,11202,5,408,Ian'S Tyre & Exhaust Centre,CR405836,Street Cleaning,Tyres,630
http://statistics.data.gov.uk/id/local-authority/12UE,Huntingdonshire District Council,18/06/2015,170553,11427,5,360,Ian'S Tyre & Exhaust Centre,CR405836,Street Cleaning,Tyres,630
http://statistics.data.gov.uk/id/local-authority/12UE,Huntingdonshire District Council,04/06/2015,169131,1505/01990,5,1020,Gullivers Truck Hire Ltd,CR477663,Domestic Refuse,Vehicle Hire,607
http://statistics.data.gov.uk/id/local-authority/12UE,Huntingdonshire District Council,04/06/2015,169825,1505/04281,5,1020,Gullivers Truck Hire Ltd,CR477663,Domestic Refuse,Vehicle Hire,607
http://statistics.data.gov.uk/id/local-authority/12UE,Huntingdonshire District Council,11/06/2015,170185,1505/07382,5,1020,Gullivers Truck Hire Ltd,CR477663,Domestic Refuse,Vehicle Hire,607
http://statistics.data.gov.uk/id/local-authority/12UE,Huntingdonshire District Council,25/06/2015,171280,1505/09935,5,1020,Gullivers Truck Hire Ltd,CR477663,Domestic Refuse,Vehicle Hire,607
http://statistics.data.gov.uk/id/local-authority/12UE,Huntingdonshire District Council,25/06/2015,170580,1505/12722,5,1020,Gullivers Truck Hire Ltd,CR477663,Domestic Refuse,Vehicle Hire,607
http://statistics.data.gov.uk/id/local-authority/12UE,Huntingdonshire District Council,25/06/2015,171341,1506/18469,5,1020,Gullivers Truck Hire Ltd,CR477663,Domestic Refuse,Vehicle Hire,607
http://statistics.data.gov.uk/id/local-authority/12UE,Huntingdonshire District Council,25/06/2015,170873,644,5,350,Mo'S Motors,CR406493,Licences,Vehicle Inspection,618
http://statistics.data.gov.uk/id/local-authority/12UE,Huntingdonshire District Council,25/06/2015,170871,52015,5,1718.25,T C Harrison Ford,CR405072,Licences,Vehicle Inspection,618
http://statistics.data.gov.uk/id/local-authority/12UE,Huntingdonshire District Council,25/06/2015,171444,YI0039106N 2015,5,1272,Navigators & General,CR455204,Countryside,Vehicle Insurance,610
http://statistics.data.gov.uk/id/local-authority/12UE,Huntingdonshire District Council,25/06/2015,170556,153768,5,253.59,Arthur Ibbett Ltd,CR000430,Countryside,Vehicle Maintenance External,619
http://statistics.data.gov.uk/id/local-authority/12UE,Huntingdonshire District Council,25/06/2015,170572,770691,5,645.97,Ernest Doe & Sons,CR000261,Countryside,Vehicle Maintenance External,619
http://statistics.data.gov.uk/id/local-authority/12UE,Huntingdonshire District Council,11/06/2015,170605,18652,5,4355.28,John Henry & Sons Ta Wfl Enterprises Ltd,CR456001,Domestic Refuse,Vehicle Maintenance External,619
http://statistics.data.gov.uk/id/local-authority/12UE,Huntingdonshire District Council,04/06/2015,170158,254670,5,549.72,Autoelec Cambs,CR480035,Grounds Maintenance (Combined),Vehicle Maintenance External,619
http://statistics.data.gov.uk/id/local-authority/12UE,Huntingdonshire District Council,25/06/2015,170155,256930I,5,231.89,A C Commercials,CR000141,Domestic Refuse,Vehicle Oil & Lubricants,626
http://statistics.data.gov.uk/id/local-authority/12UE,Huntingdonshire District Council,18/06/2015,170163,170450,5,294,Barton Petroleum,CR409205,Domestic Refuse,Vehicle Oil & Lubricants,626
http://statistics.data.gov.uk/id/local-authority/12UE,Huntingdonshire District Council,25/06/2015,170155,256930I,5,13.25,A C Commercials,CR000141,Fleet Management,Vehicle Oil & Lubricants,626
http://statistics.data.gov.uk/id/local-authority/12UE,Huntingdonshire District Council,25/06/2015,170155,256930I,5,152.39,A C Commercials,CR000141,Grounds Maintenance (Combined),Vehicle Oil & Lubricants,626
http://statistics.data.gov.uk/id/local-authority/12UE,Huntingdonshire District Council,25/06/2015,170155,256930I,5,99.38,A C Commercials,CR000141,Recycling,Vehicle Oil & Lubricants,626
http://statistics.data.gov.uk/id/local-authority/12UE,Huntingdonshire District Council,18/06/2015,170163,170450,5,126,Barton Petroleum,CR409205,Recycling,Vehicle Oil & Lubricants,626
http://statistics.data.gov.uk/id/local-authority/12UE,Huntingdonshire District Council,25/06/2015,170155,256930I,5,165.63,A C Commercials,CR000141,Street Cleaning,Vehicle Oil & Lubricants,626
http://statistics.data.gov.uk/id/local-authority/12UE,Huntingdonshire District Council,11/06/2015,169534,DE10868613,5,545.99,Dennis Eagle Ltd,CR000200,Domestic Refuse,Vehicle Parts & Fittings,625
http://statistics.data.gov.uk/id/local-authority/12UE,Huntingdonshire District Council,18/06/2015,170174,DE10869661,5,390.26,Dennis Eagle Ltd,CR000200,Domestic Refuse,Vehicle Parts & Fittings,625
http://statistics.data.gov.uk/id/local-authority/12UE,Huntingdonshire District Council,25/06/2015,170179,DE10871026,5,433.06,Dennis Eagle Ltd,CR000200,Domestic Refuse,Vehicle Parts & Fittings,625
http://statistics.data.gov.uk/id/local-authority/12UE,Huntingdonshire District Council,25/06/2015,170548,DE10871659,5,346.69,Dennis Eagle Ltd,CR000200,Domestic Refuse,Vehicle Parts & Fittings,625
http://statistics.data.gov.uk/id/local-authority/12UE,Huntingdonshire District Council,25/06/2015,170549,DE10871986,5,867.83,Dennis Eagle Ltd,CR000200,Domestic Refuse,Vehicle Parts & Fittings,625
http://statistics.data.gov.uk/id/local-authority/12UE,Huntingdonshire District Council,25/06/2015,171279,163412,5,264.74,Fentons Of Bourne Ltd,CR479022,Domestic Refuse,Vehicle Parts & Fittings,625
http://statistics.data.gov.uk/id/local-authority/12UE,Huntingdonshire District Council,11/06/2015,169474,96311787,5,177.35,Terberg Matec Uk Ltd,CR402183,Domestic Refuse,Vehicle Parts & Fittings,625
http://statistics.data.gov.uk/id/local-authority/12UE,Huntingdonshire District Council,25/06/2015,170603,96312424,5,521.95,Terberg Matec Uk Ltd,CR402183,Domestic Refuse,Vehicle Parts & Fittings,625
http://statistics.data.gov.uk/id/local-authority/12UE,Huntingdonshire District Council,11/06/2015,169516,244782,5,6263.4,G & J Peck Ltd,CR001262,Fleet Management,Vehicle Parts & Fittings,625
http://statistics.data.gov.uk/id/local-authority/12UE,Huntingdonshire District Council,04/06/2015,169095,769788,5,861.53,Ernest Doe & Sons,CR000261,Grounds Maintenance (Combined),Vehicle Parts & Fittings,625
http://statistics.data.gov.uk/id/local-authority/12UE,Huntingdonshire District Council,25/06/2015,171273,770690,5,1060.11,Ernest Doe & Sons,CR000261,Grounds Maintenance (Combined),Vehicle Parts & Fittings,625
http://statistics.data.gov.uk/id/local-authority/12UE,Huntingdonshire District Council,25/06/2015,170966,8634408,5,313.55,Lely (Uk) Ltd,CR098282,Grounds Maintenance (Combined),Vehicle Parts & Fittings,625
http://statistics.data.gov.uk/id/local-authority/12UE,Huntingdonshire District Council,25/06/2015,170970,8635018,5,78.37,Lely (Uk) Ltd,CR098282,Grounds Maintenance (Combined),Vehicle Parts & Fittings,625
http://statistics.data.gov.uk/id/local-authority/12UE,Huntingdonshire District Council,25/06/2015,170970,8635018,5,78.4,Lely (Uk) Ltd,CR098282,Grounds Maintenance (Combined),Vehicle Parts & Fittings,625
http://statistics.data.gov.uk/id/local-authority/12UE,Huntingdonshire District Council,25/06/2015,170970,8635018,5,78.4,Lely (Uk) Ltd,CR098282,Grounds Maintenance (Combined),Vehicle Parts & Fittings,625
http://statistics.data.gov.uk/id/local-authority/12UE,Huntingdonshire District Council,25/06/2015,170970,8635018,5,78.4,Lely (Uk) Ltd,CR098282,Grounds Maintenance (Combined),Vehicle Parts & Fittings,625
http://statistics.data.gov.uk/id/local-authority/12UE,Huntingdonshire District Council,04/06/2015,169094,DE10866055,5,354.49,Dennis Eagle Ltd,CR000200,Recycling,Vehicle Parts & Fittings,625
http://statistics.data.gov.uk/id/local-authority/12UE,Huntingdonshire District Council,11/06/2015,169534,DE10868613,5,233.99,Dennis Eagle Ltd,CR000200,Recycling,Vehicle Parts & Fittings,625
http://statistics.data.gov.uk/id/local-authority/12UE,Huntingdonshire District Council,11/06/2015,169474,96311787,5,76,Terberg Matec Uk Ltd,CR402183,Recycling,Vehicle Parts & Fittings,625
http://statistics.data.gov.uk/id/local-authority/12UE,Huntingdonshire District Council,11/06/2015,169547,61267006,5,666.24,Johnston Engineering Ltd,CR029831,Street Cleaning,Vehicle Parts & Fittings,625
http://statistics.data.gov.uk/id/local-authority/12UE,Huntingdonshire District Council,25/06/2015,171352,10043454,5,270.6,Lucozade Ribena Suntory Ltd,CR422660,One Leisure Huntingdon,Vending Materials,560
http://statistics.data.gov.uk/id/local-authority/12UE,Huntingdonshire District Council,04/06/2015,169587,56376,5,309.11,Snackline Direct Ltd,CR478090,One Leisure Huntingdon,Vending Materials,560
http://statistics.data.gov.uk/id/local-authority/12UE,Huntingdonshire District Council,11/06/2015,170242,57195,5,341.45,Snackline Direct Ltd,CR478090,One Leisure Huntingdon,Vending Materials,560
http://statistics.data.gov.uk/id/local-authority/12UE,Huntingdonshire District Council,04/06/2015,168361,10004685,5,645.62,Lucozade Ribena Suntory Ltd,CR422660,One Leisure Ramsey,Vending Materials,560
http://statistics.data.gov.uk/id/local-authority/12UE,Huntingdonshire District Council,11/06/2015,170127,55932,5,667.3,Snackline Direct Ltd,CR478090,One Leisure Ramsey,Vending Materials,560
http://statistics.data.gov.uk/id/local-authority/12UE,Huntingdonshire District Council,18/06/2015,170506,55564,5,886.27,Snackline Direct Ltd,CR478090,One Leisure St Ives,Vending Materials,560
http://statistics.data.gov.uk/id/local-authority/12UE,Huntingdonshire District Council,11/06/2015,170504,55939,5,349.33,Snackline Direct Ltd,CR478090,One Leisure St Ives,Vending Materials,560
http://statistics.data.gov.uk/id/local-authority/12UE,Huntingdonshire District Council,11/06/2015,170527,56156,5,368.63,Snackline Direct Ltd,CR478090,One Leisure St Ives,Vending Materials,560
http://statistics.data.gov.uk/id/local-authority/12UE,Huntingdonshire District Council,25/06/2015,170521,57206,5,586.25,Snackline Direct Ltd,CR478090,One Leisure St Ives,Vending Materials,560
http://statistics.data.gov.uk/id/local-authority/12UE,Huntingdonshire District Council,04/06/2015,169788,10024161,5,404.62,Lucozade Ribena Suntory Ltd,CR422660,One Leisure St Neots,Vending Materials,560
http://statistics.data.gov.uk/id/local-authority/12UE,Huntingdonshire District Council,25/06/2015,171365,10037533,5,345.19,Lucozade Ribena Suntory Ltd,CR422660,One Leisure St Neots,Vending Materials,560
http://statistics.data.gov.uk/id/local-authority/12UE,Huntingdonshire District Council,25/06/2015,171350,10047455,5,438.64,Lucozade Ribena Suntory Ltd,CR422660,One Leisure St Neots,Vending Materials,560
http://statistics.data.gov.uk/id/local-authority/12UE,Huntingdonshire District Council,25/06/2015,170878,57042,5,571.59,Snackline Direct Ltd,CR478090,One Leisure St Neots,Vending Materials,560
http://statistics.data.gov.uk/id/local-authority/12UE,Huntingdonshire District Council,25/06/2015,170915,SBO1019336,5,704.74,Veolia Es Uk Ltd,CR478889,One Leisure St Ives,Waste Disposal,763
http://statistics.data.gov.uk/id/local-authority/12UE,Huntingdonshire District Council,11/06/2015,169514,10611852,5,9690.96,Cambridgeshire County Council,CR006678,Trade Refuse,Waste Disposal,763
http://statistics.data.gov.uk/id/local-authority/12UE,Huntingdonshire District Council,11/06/2015,170482,101179000,5,1280.7,Anglian Water,CR000071,One Leisure Sawtry,Water,432
http://statistics.data.gov.uk/id/local-authority/12UE,Huntingdonshire District Council,04/06/2015,170088,130359813,5,162.76,Anglian Water,CR000071,Parks & Open Spaces,Water,432
